Workbook

Sheet 制单
I1: 备货日期： | J1: =NOW() -> 2018-01-30T21:45:22.720 | P1: 18 | Q1: 1、确认《shipping schedule》对包装\标签等的特殊要求，包括Packing Instruction和Remarks；如PING客户必须有PO号及出货日期的标签；ORGA要求有ORGA ITEM CODE,以及良品或不良，P、N以及真假杆的情形；
A2: Product SKU | B2: company sp | C2: SKU Desc | D2: Order Qty | E2: Finish Products in warehouse | F2: (23-Jun)Plan Qty | G2: Actually Ship Qty | H2: unit weight | I2: CTN WEIGHT | J2: on-hand QTY | K2: Insufficient QTY | L2: category | M2: remak1+不良+分类 | N2: CTN | O2: ODD | P2: SIZE | Q2: 2、将《shipping schedule》中的计划复制到此表，然后做《数据透视表》；
A3: 产品品名 | B3: 代码 | C3: 包装量 | D3: 定单数 | E3: 入库的成品数 | F3: 6月23日的计划出货数 | G3: 实际出货数 | H3: 单重（g） | I3: 箱重 | J3: 现有库存 | K3: 不够数量 | L3: 类别 | M3: 备注 | N3: 箱数 | O3: 零头 | P3: 纸箱类型 | Q3: 3、将《数据透视表》数据复制到《制单》，按成品大类排序，然后考虑按数量排序（因数量少的需合并）；
A4: BAL-SQRB-11052 | B4: =VLOOKUP(A:A,[1]重量与单价数据!A$1:F$65536,6,0) -> 385 | C4: =VLOOKUP(A:A,[1]重量与单价数据!A$1:G$65536,4,0) -> 50 | G4: 295 | H4: =VLOOKUP(A:A,[1]重量与单价数据!A$1:C$65536,3,0) -> 326 | I4: =VLOOKUP(A:A,[1]重量与单价数据!A$1:E$65536,5,0) -> 1.48 | K4: =J4-G4 -> -295 | L4: =VLOOKUP(A:A,[1]重量与单价数据!A$1:G$65536,7,0) -> Shaft | M4: =VLOOKUP(A:A,重量与单价数据!A$1:P$65536,16,0) -> 0 | N4: =CEILING(G4/C4,1) -> 6 | O4: =G4-FLOOR(G4,C4) -> 45 | P4: =VLOOKUP(A:A,重量与单价数据!A$1:H$65536,8,0) -> 145*29*16
A5: TAQ-1125-ST-CB-70041 | B5: =VLOOKUP(A:A,[1]重量与单价数据!A$1:F$65536,6,0) -> 386 | C5: =VLOOKUP(A:A,[1]重量与单价数据!A$1:G$65536,4,0) -> 1 | G5: 36 | H5: =VLOOKUP(A:A,[1]重量与单价数据!A$1:C$65536,3,0) -> 430 | I5: =VLOOKUP(A:A,[1]重量与单价数据!A$1:E$65536,5,0) -> 0.5 | K5: =J5-G5 -> -36 | L5: =VLOOKUP(A:A,[1]重量与单价数据!A$1:G$65536,7,0) -> fork | M5: =VLOOKUP(A:A,重量与单价数据!A$1:P$65536,16,0) -> 0 | N5: =CEILING(G5/C5,1) -> 36 | O5: =G5-FLOOR(G5,C5) -> 0 | P5: =VLOOKUP(A:A,重量与单价数据!A$1:H$65536,8,0) -> 89*14*9
A6: ULAUNCH145TS-46 | B6: =VLOOKUP(A:A,[1]重量与单价数据!A$1:F$65536,6,0) -> 340 | C6: =VLOOKUP(A:A,[1]重量与单价数据!A$1:G$65536,4,0) -> 50 | G6: 234 | H6: =VLOOKUP(A:A,[1]重量与单价数据!A$1:C$65536,3,0) -> 99 | I6: =VLOOKUP(A:A,[1]重量与单价数据!A$1:E$65536,5,0) -> 0.6 | K6: -234 | L6: =VLOOKUP(A:A,[1]重量与单价数据!A$1:G$65536,7,0) -> golf | M6: =VLOOKUP(A:A,重量与单价数据!A$1:P$65536,16,0) -> 0 | N6: 5 | O6: 34 | P6: =VLOOKUP(A:A,重量与单价数据!A$1:H$65536,8,0) -> 122*15*10
A7: GSAL355IS-40-T | B7: =VLOOKUP(A:A,[1]重量与单价数据!A$1:F$65536,6,0) -> 765 | C7: =VLOOKUP(A:A,[1]重量与单价数据!A$1:G$65536,4,0) -> 50 | G7: 18 | H7: =VLOOKUP(A:A,[1]重量与单价数据!A$1:C$65536,3,0) -> 72 | I7: =VLOOKUP(A:A,[1]重量与单价数据!A$1:E$65536,5,0) -> 0.6 | K7: =J7-G7 -> -18 | L7: =VLOOKUP(A:A,[1]重量与单价数据!A$1:G$65536,7,0) -> golf | M7: =VLOOKUP(A:A,重量与单价数据!A$1:P$65536,16,0) -> 0 | N7: =CEILING(G7/C7,1) -> 1 | O7: =G7-FLOOR(G7,C7) -> 18 | P7: =VLOOKUP(A:A,重量与单价数据!A$1:H$65536,8,0) -> 122*15*10
A8: TAQEX-1125-ST-CB-70044 | B8: =VLOOKUP(A:A,[1]重量与单价数据!A$1:F$65536,6,0) -> 339 | C8: =VLOOKUP(A:A,[1]重量与单价数据!A$1:G$65536,4,0) -> 1 | G8: 50 | H8: =VLOOKUP(A:A,[1]重量与单价数据!A$1:C$65536,3,0) -> 430 | I8: =VLOOKUP(A:A,[1]重量与单价数据!A$1:E$65536,5,0) -> 0.5 | K8: -50 | L8: =VLOOKUP(A:A,[1]重量与单价数据!A$1:G$65536,7,0) -> fork | M8: =VLOOKUP(A:A,重量与单价数据!A$1:P$65536,16,0) -> 0 | N8: 50 | O8: 0 | P8: =VLOOKUP(A:A,重量与单价数据!A$1:H$65536,8,0) -> 89*14*9
A9: ULAUNCH145TS-46 | B9: =VLOOKUP(A:A,[1]重量与单价数据!A$1:F$65536,6,0) -> 340 | C9: =VLOOKUP(A:A,[1]重量与单价数据!A$1:G$65536,4,0) -> 50 | G9: 234 | H9: =VLOOKUP(A:A,[1]重量与单价数据!A$1:C$65536,3,0) -> 99 | I9: =VLOOKUP(A:A,[1]重量与单价数据!A$1:E$65536,5,0) -> 0.6 | K9: -234 | L9: =VLOOKUP(A:A,[1]重量与单价数据!A$1:G$65536,7,0) -> golf | M9: =VLOOKUP(A:A,重量与单价数据!A$1:P$65536,16,0) -> 0 | N9: 5 | O9: 34 | P9: =VLOOKUP(A:A,重量与单价数据!A$1:H$65536,8,0) -> 122*15*10
A10: GSAL355IS-40-T | B10: =VLOOKUP(A:A,[1]重量与单价数据!A$1:F$65536,6,0) -> 765 | C10: =VLOOKUP(A:A,[1]重量与单价数据!A$1:G$65536,4,0) -> 50 | G10: 18 | H10: =VLOOKUP(A:A,[1]重量与单价数据!A$1:C$65536,3,0) -> 72 | I10: =VLOOKUP(A:A,[1]重量与单价数据!A$1:E$65536,5,0) -> 0.6 | K10: -18 | L10: =VLOOKUP(A:A,[1]重量与单价数据!A$1:G$65536,7,0) -> golf | M10: =VLOOKUP(A:A,重量与单价数据!A$1:P$65536,16,0) -> 0 | N10: 1 | O10: 18 | P10: =VLOOKUP(A:A,重量与单价数据!A$1:H$65536,8,0) -> 122*15*10
A11: CCM-V8-TT-4556 | B11: =VLOOKUP(A:A,[1]重量与单价数据!A$1:F$65536,6,0) -> 766 | C11: =VLOOKUP(A:A,[1]重量与单价数据!A$1:G$65536,4,0) -> 50 | G11: 25 | H11: =VLOOKUP(A:A,[1]重量与单价数据!A$1:C$65536,3,0) -> 380 | I11: =VLOOKUP(A:A,[1]重量与单价数据!A$1:E$65536,5,0) -> 1.48 | K11: -25 | L11: =VLOOKUP(A:A,[1]重量与单价数据!A$1:G$65536,7,0) -> shaft | M11: =VLOOKUP(A:A,重量与单价数据!A$1:P$65536,16,0) -> 0 | N11: 1 | O11: 25 | P11: =VLOOKUP(A:A,重量与单价数据!A$1:H$65536,8,0) -> 145*29*16
A12: SHR-RM19-P225-G01L-57 | B12: =VLOOKUP(A:A,[1]重量与单价数据!A$1:F$65536,6,0) -> 1496 | C12: =VLOOKUP(A:A,[1]重量与单价数据!A$1:G$65536,4,0) -> 12 | G12: 25 | H12: =VLOOKUP(A:A,[1]重量与单价数据!A$1:C$65536,3,0) -> 740 | I12: =VLOOKUP(A:A,[1]重量与单价数据!A$1:E$65536,5,0) -> 2.22 | K12: =J12-G12 -> -25 | L12: =VLOOKUP(A:A,[1]重量与单价数据!A$1:G$65536,7,0) -> goalier | M12: =VLOOKUP(A:A,重量与单价数据!A$1:P$65536,16,0) -> 0 | N12: =CEILING(G12/C12,1) -> 3 | O12: =G12-FLOOR(G12,C12) -> 1 | P12: =VLOOKUP(A:A,重量与单价数据!A$1:H$65536,8,0) -> 179*42*15
A13: SHR-RM19-P225-G01L-57 | B13: =VLOOKUP(A:A,[1]重量与单价数据!A$1:F$65536,6,0) -> 1496 | C13: =VLOOKUP(A:A,[1]重量与单价数据!A$1:G$65536,4,0) -> 12 | G13: 25 | H13: =VLOOKUP(A:A,[1]重量与单价数据!A$1:C$65536,3,0) -> 740 | I13: =VLOOKUP(A:A,[1]重量与单价数据!A$1:E$65536,5,0) -> 2.22 | K13: =J13-G13 -> -25 | L13: =VLOOKUP(A:A,[1]重量与单价数据!A$1:G$65536,7,0) -> goalier | M13: =VLOOKUP(A:A,重量与单价数据!A$1:P$65536,16,0) -> 0 | N13: =CEILING(G13/C13,1) -> 3 | O13: =G13-FLOOR(G13,C13) -> 1 | P13: =VLOOKUP(A:A,重量与单价数据!A$1:H$65536,8,0) -> 179*42*15
A14: GSAL355IS-40-T | B14: =VLOOKUP(A:A,[1]重量与单价数据!A$1:F$65536,6,0) -> 765 | C14: =VLOOKUP(A:A,[1]重量与单价数据!A$1:G$65536,4,0) -> 50 | G14: 18 | H14: =VLOOKUP(A:A,[1]重量与单价数据!A$1:C$65536,3,0) -> 72 | I14: =VLOOKUP(A:A,[1]重量与单价数据!A$1:E$65536,5,0) -> 0.6 | K14: -18 | L14: =VLOOKUP(A:A,[1]重量与单价数据!A$1:G$65536,7,0) -> golf | M14: =VLOOKUP(A:A,重量与单价数据!A$1:P$65536,16,0) -> 0 | N14: 1 | O14: 18 | P14: =VLOOKUP(A:A,重量与单价数据!A$1:H$65536,8,0) -> 122*15*10
A15: TAQEX-1125-ST-CB-70044 | B15: =VLOOKUP(A:A,[1]重量与单价数据!A$1:F$65536,6,0) -> 339 | C15: =VLOOKUP(A:A,[1]重量与单价数据!A$1:G$65536,4,0) -> 1 | G15: 50 | H15: =VLOOKUP(A:A,[1]重量与单价数据!A$1:C$65536,3,0) -> 430 | I15: =VLOOKUP(A:A,[1]重量与单价数据!A$1:E$65536,5,0) -> 0.5 | K15: -50 | L15: =VLOOKUP(A:A,[1]重量与单价数据!A$1:G$65536,7,0) -> fork | M15: =VLOOKUP(A:A,重量与单价数据!A$1:P$65536,16,0) -> 0 | N15: 50 | O15: 0 | P15: =VLOOKUP(A:A,重量与单价数据!A$1:H$65536,8,0) -> 89*14*9
A16: ULAUNCH145TS-46 | B16: =VLOOKUP(A:A,[1]重量与单价数据!A$1:F$65536,6,0) -> 340 | C16: =VLOOKUP(A:A,[1]重量与单价数据!A$1:G$65536,4,0) -> 50 | G16: 234 | H16: =VLOOKUP(A:A,[1]重量与单价数据!A$1:C$65536,3,0) -> 99 | I16: =VLOOKUP(A:A,[1]重量与单价数据!A$1:E$65536,5,0) -> 0.6 | K16: -234 | L16: =VLOOKUP(A:A,[1]重量与单价数据!A$1:G$65536,7,0) -> golf | M16: =VLOOKUP(A:A,重量与单价数据!A$1:P$65536,16,0) -> 0 | N16: 5 | O16: 34 | P16: =VLOOKUP(A:A,重量与单价数据!A$1:H$65536,8,0) -> 122*15*10
A17: GSAL355IS-40-T | B17: =VLOOKUP(A:A,[1]重量与单价数据!A$1:F$65536,6,0) -> 765 | C17: =VLOOKUP(A:A,[1]重量与单价数据!A$1:G$65536,4,0) -> 50 | G17: 18 | H17: =VLOOKUP(A:A,[1]重量与单价数据!A$1:C$65536,3,0) -> 72 | I17: =VLOOKUP(A:A,[1]重量与单价数据!A$1:E$65536,5,0) -> 0.6 | K17: -18 | L17: =VLOOKUP(A:A,[1]重量与单价数据!A$1:G$65536,7,0) -> golf | M17: =VLOOKUP(A:A,重量与单价数据!A$1:P$65536,16,0) -> 0 | N17: 1 | O17: 18 | P17: =VLOOKUP(A:A,重量与单价数据!A$1:H$65536,8,0) -> 122*15*10
A18: CCM-V8-TT-4556 | B18: =VLOOKUP(A:A,[1]重量与单价数据!A$1:F$65536,6,0) -> 766 | C18: =VLOOKUP(A:A,[1]重量与单价数据!A$1:G$65536,4,0) -> 50 | G18: 25 | H18: =VLOOKUP(A:A,[1]重量与单价数据!A$1:C$65536,3,0) -> 380 | I18: =VLOOKUP(A:A,[1]重量与单价数据!A$1:E$65536,5,0) -> 1.48 | K18: -25 | L18: =VLOOKUP(A:A,[1]重量与单价数据!A$1:G$65536,7,0) -> shaft | M18: =VLOOKUP(A:A,重量与单价数据!A$1:P$65536,16,0) -> 0 | N18: 1 | O18: 25 | P18: =VLOOKUP(A:A,重量与单价数据!A$1:H$65536,8,0) -> 145*29*16
A19: SHR-RM19-P225-G01L-57 | B19: =VLOOKUP(A:A,[1]重量与单价数据!A$1:F$65536,6,0) -> 1496 | C19: =VLOOKUP(A:A,[1]重量与单价数据!A$1:G$65536,4,0) -> 12 | G19: 25 | H19: =VLOOKUP(A:A,[1]重量与单价数据!A$1:C$65536,3,0) -> 740 | I19: =VLOOKUP(A:A,[1]重量与单价数据!A$1:E$65536,5,0) -> 2.22 | K19: =J19-G19 -> -25 | L19: =VLOOKUP(A:A,[1]重量与单价数据!A$1:G$65536,7,0) -> goalier | M19: =VLOOKUP(A:A,重量与单价数据!A$1:P$65536,16,0) -> 0 | N19: =CEILING(G19/C19,1) -> 3 | O19: =G19-FLOOR(G19,C19) -> 1 | P19: =VLOOKUP(A:A,重量与单价数据!A$1:H$65536,8,0) -> 179*42*15
A20: SHR-RM19-P225-G01L-57 | B20: =VLOOKUP(A:A,[1]重量与单价数据!A$1:F$65536,6,0) -> 1496 | C20: =VLOOKUP(A:A,[1]重量与单价数据!A$1:G$65536,4,0) -> 12 | G20: 25 | H20: =VLOOKUP(A:A,[1]重量与单价数据!A$1:C$65536,3,0) -> 740 | I20: =VLOOKUP(A:A,[1]重量与单价数据!A$1:E$65536,5,0) -> 2.22 | K20: =J20-G20 -> -25 | L20: =VLOOKUP(A:A,[1]重量与单价数据!A$1:G$65536,7,0) -> goalier | M20: =VLOOKUP(A:A,重量与单价数据!A$1:P$65536,16,0) -> 0 | N20: =CEILING(G20/C20,1) -> 3 | O20: =G20-FLOOR(G20,C20) -> 1 | P20: =VLOOKUP(A:A,重量与单价数据!A$1:H$65536,8,0) -> 179*42*15
A21: Total | G21: =SUM(G$1:G20) -> 1355 | N21: =SUM(N$1:N20) -> 175

Sheet INVOICE
A1: 绩能复合材料制品（广州）有限公司
A2: JI NENG COMPOSITE MATERIALS & PRODUCTS (GUANGZHOU) LTD.
A3: 728 Xiagang Blvd., Heng Yun Building 5F Guangzhou Economic & Technology Development District
A4: TEL:86-20-22321015 FAX: 86-757-82209433
A6: 发票
A7: COMMERCIAL INVOICE
H8: Invoice No.: | I8: JEC-05??
A9: To Messrs: | H9: Date: | I9: 2005-05-11
A10: TRUE TEMPER SPORTS INC.
A11: ADD: 1020 North Marshall Aven. El Cajon, CA 92020 | I11: 25
A14: From | B14: GUANGZHOU,CHINA | D14: To | E14: Hong Kong
A17: Marks & No. | B17: Description Of Goods | E17: Unit Price | G17: Amount
F18: CNF LOSANGELES
B19: BAL-SQRB-11052 | D19: 295 | E19: PCS | F19: =VLOOKUP(B:B,重量与单价数据!A:B,2,0) -> 9 | H19: =D19*F19 -> 2655 | K19: =VLOOKUP(B:B,重量与单价数据!A:D,4,0) -> 50
B21: TAQ-1125-ST-CB-70041 | D21: 36 | E21: PCS | F21: =VLOOKUP(B:B,重量与单价数据!A:B,2,0) -> 9 | H21: =D21*F21 -> 324 | K21: =VLOOKUP(B:B,重量与单价数据!A:D,4,0) -> 1
B23: ULAUNCH145TS-46 | D23: 234 | E23: PCS | F23: =VLOOKUP(B:B,重量与单价数据!A:B,2,0) -> 9 | H23: =D23*F23 -> 2106 | K23: =VLOOKUP(B:B,重量与单价数据!A:D,4,0) -> 50
B25: GSAL355IS-40-T | D25: 18 | E25: PCS | F25: =VLOOKUP(B:B,重量与单价数据!A:B,2,0) -> 9 | H25: =D25*F25 -> 162 | K25: =VLOOKUP(B:B,重量与单价数据!A:D,4,0) -> 50
B27: TAQEX-1125-ST-CB-70044 | D27: 50 | E27: PCS | F27: =VLOOKUP(B:B,重量与单价数据!A:B,2,0) -> 9 | H27: =D27*F27 -> 450 | K27: =VLOOKUP(B:B,重量与单价数据!A:D,4,0) -> 1
B29: ULAUNCH145TS-46 | D29: 234 | E29: PCS | F29: =VLOOKUP(B:B,重量与单价数据!A:B,2,0) -> 9 | H29: =D29*F29 -> 2106 | K29: =VLOOKUP(B:B,重量与单价数据!A:D,4,0) -> 50
B31: GSAL355IS-40-T | D31: 18 | E31: PCS | F31: =VLOOKUP(B:B,重量与单价数据!A:B,2,0) -> 9 | H31: =D31*F31 -> 162 | K31: =VLOOKUP(B:B,重量与单价数据!A:D,4,0) -> 50
B33: CCM-V8-TT-4556 | D33: 25 | E33: PCS | F33: =VLOOKUP(B:B,重量与单价数据!A:B,2,0) -> 9 | H33: =D33*F33 -> 225 | K33: =VLOOKUP(B:B,重量与单价数据!A:D,4,0) -> 50
B35: SHR-RM19-P225-G01L-57 | D35: 25 | E35: PCS | F35: =VLOOKUP(B:B,重量与单价数据!A:B,2,0) -> 9 | H35: =D35*F35 -> 225 | K35: =VLOOKUP(B:B,重量与单价数据!A:D,4,0) -> 12
B37: SHR-RM19-P225-G01L-57 | D37: 25 | E37: PCS | F37: =VLOOKUP(B:B,重量与单价数据!A:B,2,0) -> 9 | H37: =D37*F37 -> 225 | K37: =VLOOKUP(B:B,重量与单价数据!A:D,4,0) -> 12
B39: GSAL355IS-40-T | D39: 18 | E39: PCS | F39: =VLOOKUP(B:B,重量与单价数据!A:B,2,0) -> 9 | H39: =D39*F39 -> 162 | K39: =VLOOKUP(B:B,重量与单价数据!A:D,4,0) -> 50
B41: TAQEX-1125-ST-CB-70044 | D41: 50 | E41: PCS | F41: =VLOOKUP(B:B,重量与单价数据!A:B,2,0) -> 9 | H41: =D41*F41 -> 450 | K41: =VLOOKUP(B:B,重量与单价数据!A:D,4,0) -> 1
B43: ULAUNCH145TS-46 | D43: 234 | E43: PCS | F43: =VLOOKUP(B:B,重量与单价数据!A:B,2,0) -> 9 | H43: =D43*F43 -> 2106 | K43: =VLOOKUP(B:B,重量与单价数据!A:D,4,0) -> 50
B45: GSAL355IS-40-T | D45: 18 | E45: PCS | F45: =VLOOKUP(B:B,重量与单价数据!A:B,2,0) -> 9 | H45: =D45*F45 -> 162 | K45: =VLOOKUP(B:B,重量与单价数据!A:D,4,0) -> 50
B47: CCM-V8-TT-4556 | D47: 25 | E47: PCS | F47: =VLOOKUP(B:B,重量与单价数据!A:B,2,0) -> 9 | H47: =D47*F47 -> 225 | K47: =VLOOKUP(B:B,重量与单价数据!A:D,4,0) -> 50
B49: SHR-RM19-P225-G01L-57 | D49: 25 | E49: PCS | F49: =VLOOKUP(B:B,重量与单价数据!A:B,2,0) -> 9 | H49: =D49*F49 -> 225 | K49: =VLOOKUP(B:B,重量与单价数据!A:D,4,0) -> 12
B51: SHR-RM19-P225-G01L-57 | D51: 25 | E51: PCS | F51: =VLOOKUP(B:B,重量与单价数据!A:B,2,0) -> 9 | H51: =D51*F51 -> 225 | K51: =VLOOKUP(B:B,重量与单价数据!A:D,4,0) -> 12
B55: TOTAL: | D55: =SUM(D$1:D54) -> 1355 | E55: PCS | H55: =SUM(H$1:H54) -> 12195

Sheet PACKING LIST
A1: 绩能复合材料制品（广州）有限公司 | Q1: 1、纸箱规格一定要检查是否需要修改？
A2: JI NENG COMPOSITE MATERIALS & PRODUCTS (GUANGZHOU) LTD. | Q2: 2、车叉需注意区分类型；
A3: 728 Xiagang Blvd., Heng Yun Building 5F Guangzhou Economic & Technology Development District | Q3: 3、TFC一个卡板只能放八层，但一层可放5箱
A4: TEL:86-20-22321015 FAX: 86-757-82209433 | Q4: 4、注意汇总重量数据是否包括全部？
U5: 考虑先进先出时：
C6: 装箱单 | U6: 请注意库存数据截止时间如下:
C7: PACKING LIST | U7: =NOW() -> 2018-01-30T21:45:22.720
A8: To Messrs: | I8: Invoice No.: | J8: JEC- | U8: (灰色部分为库存数量暂不够部分)
A9: TRUE TEMPER SPORTS INC. | I9: Date: | J9: 2007-08-
A10: ADD: 1020 North Marshall Aven. El Cajon, CA 92020
B11: UTEJMQL33WR-46 | K11: =IF(TYPE(VLOOKUP(B:B,[1]重量与单价数据!A$1:I$65536,9,0))=16,"",VLOOKUP(B:B,[1]重量与单价数据!A$1:I$65536,9,0)) -> 122 | L11: x | M11: =IF(TYPE(VLOOKUP(B:B,[1]重量与单价数据!A$1:J$65536,10,0))=16,"",VLOOKUP(B:B,[1]重量与单价数据!A$1:J$65536,10,0)) -> 15 | N11: x | O11: =IF(TYPE(VLOOKUP(B:B,[1]重量与单价数据!A$1:K$65536,11,0))=16,"",VLOOKUP(B:B,[1]重量与单价数据!A$1:K$65536,11,0)) -> 10 | P11: cm | U11: =IF(TYPE(VLOOKUP(B:B,[1]制单!A$1:J$65536,10,0))=16,"",VLOOKUP(B:B,[1]制单!A$1:J$65536,10,0)) ->  | V11: =IF(TYPE(VLOOKUP(B:B,[1]出货计划Remark!A$1:L$65536,12,0))=16,"",VLOOKUP(B:B,[1]出货计划Remark!A$1:L$65536,12,0)) -> 
A12: From | B12: GUANGZHOU，CHINA | E12: To
D13: =IF(TYPE(VLOOKUP(B:B,[1]制单!A$1:G$65536,7,0))=16,"",VLOOKUP(B:B,[1]制单!A$1:G$65536,7,0)) ->  | U13: =IF(TYPE(VLOOKUP(B:B,[1]制单!A$1:K$65536,11,0))=16,"",IF(VLOOKUP(B:B,[1]制单!A$1:K$65536,11,0)>=0,"",VLOOKUP(B:B,[1]制单!A$1:K$65536,11,0))) -> 
A14: CTN NO. | B14: DESCRIPTION OF GOODS | E14: QUANTITY | G14: GROSS WEIGHT | I14: NET WEIGHT | K14: MEASUREMENT | Q14: 体积 | R14: 每支单重 | S14: 纸箱重量 | T14: 每箱数量 | U14: Inventory QTY | V14: Remark
G15: (KGS) | I15: (KGS) | K15: (cm) | U15: =IF(TYPE(VLOOKUP(B:B,[1]制单!A$1:K$65536,11,0))=16,"",IF(VLOOKUP(B:B,[1]制单!A$1:K$65536,11,0)>=0,"",VLOOKUP(B:B,[1]制单!A$1:K$65536,11,0))) -> 
B16: 高尔夫球杆杆轴11 | D16: ( 1355PCS ) | U16: =IF(TYPE(VLOOKUP(B:B,[1]制单!A$1:K$65536,11,0))=16,"",IF(VLOOKUP(B:B,[1]制单!A$1:K$65536,11,0)>=0,"",VLOOKUP(B:B,[1]制单!A$1:K$65536,11,0))) -> 
A17: 1 - 5 | B17: =INVOICE!B19 -> BAL-SQRB-11052 | E17: 5 | F17: CARTONS | G17: 88.9 | H17: KGS | I17: 81.5 | J17: KGS | K17: =VLOOKUP(B:B,重量与单价数据!A:I,9,0) -> 145 | L17: x | M17: =VLOOKUP(B:B,重量与单价数据!A:J,10,0) -> 29 | N17: x | O17: =VLOOKUP(B:B,重量与单价数据!A:K,11,0) -> 16 | P17: cm | Q17: =E17*K17*M17*O17/1000000 -> 0.3364 | R17: =VLOOKUP(B:B,重量与单价数据!A:C,3,0)/1000 -> 0.326 | S17: =VLOOKUP(B:B,重量与单价数据!A:E,5,0) -> 1.48 | T17: =VLOOKUP(B:B,重量与单价数据!A:D,4,0) -> 50
E18: ( 50 PCS/CTN, 250PCS) | G18: (@17.78 kgs) | I18: (@16.3kgs)
A19: 6 - 6 | B19: =B17 -> BAL-SQRB-11052 | E19: 1 | F19: CARTONS | G19: 16.15 | H19: KGS | I19: 14.67 | J19: KGS | K19: =VLOOKUP(B:B,重量与单价数据!A:I,9,0) -> 145 | L19: x | M19: =VLOOKUP(B:B,重量与单价数据!A:J,10,0) -> 29 | N19: x | O19: =VLOOKUP(B:B,重量与单价数据!A:K,11,0) -> 16 | P19: cm | Q19: =E19*K19*M19*O19/1000000 -> 0.06728 | R19: =VLOOKUP(B:B,重量与单价数据!A:C,3,0)/1000 -> 0.326
E20: ( 45 PCS/CTN, 45PCS) | G20: (@16.15 kgs) | I20: (@14.67kgs)
A21: 7 - 42 | B21: =INVOICE!B21 -> TAQ-1125-ST-CB-70041 | E21: 36 | F21: CARTONS | G21: 33.48 | H21: KGS | I21: 15.48 | J21: KGS | K21: =VLOOKUP(B:B,重量与单价数据!A:I,9,0) -> 89 | L21: x | M21: =VLOOKUP(B:B,重量与单价数据!A:J,10,0) -> 14 | N21: x | O21: =VLOOKUP(B:B,重量与单价数据!A:K,11,0) -> 9 | P21: cm | Q21: =E21*K21*M21*O21/1000000 -> 0.403704 | R21: =VLOOKUP(B:B,重量与单价数据!A:C,3,0)/1000 -> 0.43 | S21: =VLOOKUP(B:B,重量与单价数据!A:E,5,0) -> 0.5 | T21: =VLOOKUP(B:B,重量与单价数据!A:D,4,0) -> 1
E22: ( 1 PCS/CTN, 36PCS) | G22: (@.93 kgs) | I22: (@.43kgs)
A23: 43 - 46 | B23: =INVOICE!B23 -> ULAUNCH145TS-46 | E23: 4 | F23: CARTONS | G23: 22.2 | H23: KGS | I23: 19.8 | J23: KGS | K23: =VLOOKUP(B:B,重量与单价数据!A:I,9,0) -> 122 | L23: x | M23: =VLOOKUP(B:B,重量与单价数据!A:J,10,0) -> 15 | N23: x | O23: =VLOOKUP(B:B,重量与单价数据!A:K,11,0) -> 10 | P23: cm | Q23: =E23*K23*M23*O23/1000000 -> 0.0732 | R23: =VLOOKUP(B:B,重量与单价数据!A:C,3,0)/1000 -> 0.099 | S23: =VLOOKUP(B:B,重量与单价数据!A:E,5,0) -> 0.6 | T23: =VLOOKUP(B:B,重量与单价数据!A:D,4,0) -> 50
E24: ( 50 PCS/CTN, 200PCS) | G24: (@5.55 kgs) | I24: (@4.95kgs)
A25: 47 - 47 | B25: =B23 -> ULAUNCH145TS-46 | E25: 1 | F25: CARTONS | G25: 3.966 | H25: KGS | I25: 3.366 | J25: KGS | K25: =VLOOKUP(B:B,重量与单价数据!A:I,9,0) -> 122 | L25: x | M25: =VLOOKUP(B:B,重量与单价数据!A:J,10,0) -> 15 | N25: x | O25: =VLOOKUP(B:B,重量与单价数据!A:K,11,0) -> 10 | P25: cm | Q25: =E25*K25*M25*O25/1000000 -> 0.0183 | R25: =VLOOKUP(B:B,重量与单价数据!A:C,3,0)/1000 -> 0.099
E26: ( 34 PCS/CTN, 34PCS) | G26: (@3.966 kgs) | I26: (@3.366kgs)
A27: 48 - 48 | B27: =INVOICE!B25 -> GSAL355IS-40-T | E27: 1 | F27: CARTONS | G27: 1.896 | H27: KGS | I27: 1.296 | J27: KGS | K27: =VLOOKUP(B:B,重量与单价数据!A:I,9,0) -> 122 | L27: x | M27: =VLOOKUP(B:B,重量与单价数据!A:J,10,0) -> 15 | N27: x | O27: =VLOOKUP(B:B,重量与单价数据!A:K,11,0) -> 10 | P27: cm | Q27: =E27*K27*M27*O27/1000000 -> 0.0183 | R27: =VLOOKUP(B:B,重量与单价数据!A:C,3,0)/1000 -> 0.072 | S27: =VLOOKUP(B:B,重量与单价数据!A:E,5,0) -> 0.6 | T27: =VLOOKUP(B:B,重量与单价数据!A:D,4,0) -> 50
E28: ( 18 PCS/CTN, 18PCS) | G28: (@1.896 kgs) | I28: (@1.296kgs)
A29: 49 - 98 | B29: =INVOICE!B27 -> TAQEX-1125-ST-CB-70044 | E29: 50 | F29: CARTONS | G29: 46.5 | H29: KGS | I29: 21.5 | J29: KGS | K29: =VLOOKUP(B:B,重量与单价数据!A:I,9,0) -> 89 | L29: x | M29: =VLOOKUP(B:B,重量与单价数据!A:J,10,0) -> 14 | N29: x | O29: =VLOOKUP(B:B,重量与单价数据!A:K,11,0) -> 9 | P29: cm | Q29: =E29*K29*M29*O29/1000000 -> 0.5607 | R29: =VLOOKUP(B:B,重量与单价数据!A:C,3,0)/1000 -> 0.43 | S29: =VLOOKUP(B:B,重量与单价数据!A:E,5,0) -> 0.5 | T29: =VLOOKUP(B:B,重量与单价数据!A:D,4,0) -> 1
E30: ( 1 PCS/CTN, 50PCS) | G30: (@.93 kgs) | I30: (@.43kgs)
A31: 99 - 102 | B31: =INVOICE!B29 -> ULAUNCH145TS-46 | E31: 4 | F31: CARTONS | G31: 22.2 | H31: KGS | I31: 19.8 | J31: KGS | K31: =VLOOKUP(B:B,重量与单价数据!A:I,9,0) -> 122 | L31: x | M31: =VLOOKUP(B:B,重量与单价数据!A:J,10,0) -> 15 | N31: x | O31: =VLOOKUP(B:B,重量与单价数据!A:K,11,0) -> 10 | P31: cm | Q31: =E31*K31*M31*O31/1000000 -> 0.0732 | R31: =VLOOKUP(B:B,重量与单价数据!A:C,3,0)/1000 -> 0.099 | S31: =VLOOKUP(B:B,重量与单价数据!A:E,5,0) -> 0.6 | T31: =VLOOKUP(B:B,重量与单价数据!A:D,4,0) -> 50
E32: ( 50 PCS/CTN, 200PCS) | G32: (@5.55 kgs) | I32: (@4.95kgs)
A33: 103 - 103 | B33: =B31 -> ULAUNCH145TS-46 | E33: 1 | F33: CARTONS | G33: 3.966 | H33: KGS | I33: 3.366 | J33: KGS | K33: =VLOOKUP(B:B,重量与单价数据!A:I,9,0) -> 122 | L33: x | M33: =VLOOKUP(B:B,重量与单价数据!A:J,10,0) -> 15 | N33: x | O33: =VLOOKUP(B:B,重量与单价数据!A:K,11,0) -> 10 | P33: cm | Q33: =E33*K33*M33*O33/1000000 -> 0.0183 | R33: =VLOOKUP(B:B,重量与单价数据!A:C,3,0)/1000 -> 0.099
E34: ( 34 PCS/CTN, 34PCS) | G34: (@3.966 kgs) | I34: (@3.366kgs)
A35: 104 - 104 | B35: =INVOICE!B31 -> GSAL355IS-40-T | E35: 1 | F35: CARTONS | G35: 1.896 | H35: KGS | I35: 1.296 | J35: KGS | K35: =VLOOKUP(B:B,重量与单价数据!A:I,9,0) -> 122 | L35: x | M35: =VLOOKUP(B:B,重量与单价数据!A:J,10,0) -> 15 | N35: x | O35: =VLOOKUP(B:B,重量与单价数据!A:K,11,0) -> 10 | P35: cm | Q35: =E35*K35*M35*O35/1000000 -> 0.0183 | R35: =VLOOKUP(B:B,重量与单价数据!A:C,3,0)/1000 -> 0.072 | S35: =VLOOKUP(B:B,重量与单价数据!A:E,5,0) -> 0.6 | T35: =VLOOKUP(B:B,重量与单价数据!A:D,4,0) -> 50
E36: ( 18 PCS/CTN, 18PCS) | G36: (@1.896 kgs) | I36: (@1.296kgs)
A37: 105 - 105 | B37: =INVOICE!B33 -> CCM-V8-TT-4556 | E37: 1 | F37: CARTONS | G37: 10.98 | H37: KGS | I37: 9.5 | J37: KGS | K37: =VLOOKUP(B:B,重量与单价数据!A:I,9,0) -> 145 | L37: x | M37: =VLOOKUP(B:B,重量与单价数据!A:J,10,0) -> 29 | N37: x | O37: =VLOOKUP(B:B,重量与单价数据!A:K,11,0) -> 16 | P37: cm | Q37: =E37*K37*M37*O37/1000000 -> 0.06728 | R37: =VLOOKUP(B:B,重量与单价数据!A:C,3,0)/1000 -> 0.38 | S37: =VLOOKUP(B:B,重量与单价数据!A:E,5,0) -> 1.48 | T37: =VLOOKUP(B:B,重量与单价数据!A:D,4,0) -> 50
E38: ( 25 PCS/CTN, 25PCS) | G38: (@10.98 kgs) | I38: (@9.5kgs)
A39: 106 - 107 | B39: =INVOICE!B35 -> SHR-RM19-P225-G01L-57 | E39: 2 | F39: CARTONS | G39: 22.2 | H39: KGS | I39: 17.76 | J39: KGS | K39: =VLOOKUP(B:B,重量与单价数据!A:I,9,0) -> 179 | L39: x | M39: =VLOOKUP(B:B,重量与单价数据!A:J,10,0) -> 42 | N39: x | O39: =VLOOKUP(B:B,重量与单价数据!A:K,11,0) -> 15 | P39: cm | Q39: =E39*K39*M39*O39/1000000 -> 0.22554 | R39: =VLOOKUP(B:B,重量与单价数据!A:C,3,0)/1000 -> 0.74 | S39: =VLOOKUP(B:B,重量与单价数据!A:E,5,0) -> 2.22 | T39: =VLOOKUP(B:B,重量与单价数据!A:D,4,0) -> 12
E40: ( 12 PCS/CTN, 24PCS) | G40: (@11.1 kgs) | I40: (@8.88kgs)
A41: 108 - 108 | B41: =B39 -> SHR-RM19-P225-G01L-57 | E41: 1 | F41: CARTONS | G41: 2.96 | H41: KGS | I41: 0.74 | J41: KGS | K41: =VLOOKUP(B:B,重量与单价数据!A:I,9,0) -> 179 | L41: x | M41: =VLOOKUP(B:B,重量与单价数据!A:J,10,0) -> 42 | N41: x | O41: =VLOOKUP(B:B,重量与单价数据!A:K,11,0) -> 15 | P41: cm | Q41: =E41*K41*M41*O41/1000000 -> 0.11277 | R41: =VLOOKUP(B:B,重量与单价数据!A:C,3,0)/1000 -> 0.74
E42: ( 1 PCS/CTN, 1PCS) | G42: (@2.96 kgs) | I42: (@.74kgs)
A43: 109 - 110 | B43: =INVOICE!B37 -> SHR-RM19-P225-G01L-57 | E43: 2 | F43: CARTONS | G43: 22.2 | H43: KGS | I43: 17.76 | J43: KGS | K43: =VLOOKUP(B:B,重量与单价数据!A:I,9,0) -> 179 | L43: x | M43: =VLOOKUP(B:B,重量与单价数据!A:J,10,0) -> 42 | N43: x | O43: =VLOOKUP(B:B,重量与单价数据!A:K,11,0) -> 15 | P43: cm | Q43: =E43*K43*M43*O43/1000000 -> 0.22554 | R43: =VLOOKUP(B:B,重量与单价数据!A:C,3,0)/1000 -> 0.74 | S43: =VLOOKUP(B:B,重量与单价数据!A:E,5,0) -> 2.22 | T43: =VLOOKUP(B:B,重量与单价数据!A:D,4,0) -> 12
E44: ( 12 PCS/CTN, 24PCS) | G44: (@11.1 kgs) | I44: (@8.88kgs)
A45: 111 - 111 | B45: =B43 -> SHR-RM19-P225-G01L-57 | E45: 1 | F45: CARTONS | G45: 2.96 | H45: KGS | I45: 0.74 | J45: KGS | K45: =VLOOKUP(B:B,重量与单价数据!A:I,9,0) -> 179 | L45: x | M45: =VLOOKUP(B:B,重量与单价数据!A:J,10,0) -> 42 | N45: x | O45: =VLOOKUP(B:B,重量与单价数据!A:K,11,0) -> 15 | P45: cm | Q45: =E45*K45*M45*O45/1000000 -> 0.11277 | R45: =VLOOKUP(B:B,重量与单价数据!A:C,3,0)/1000 -> 0.74
E46: ( 1 PCS/CTN, 1PCS) | G46: (@2.96 kgs) | I46: (@.74kgs)
A47: 112 - 112 | B47: =INVOICE!B39 -> GSAL355IS-40-T | E47: 1 | F47: CARTONS | G47: 1.896 | H47: KGS | I47: 1.296 | J47: KGS | K47: =VLOOKUP(B:B,重量与单价数据!A:I,9,0) -> 122 | L47: x | M47: =VLOOKUP(B:B,重量与单价数据!A:J,10,0) -> 15 | N47: x | O47: =VLOOKUP(B:B,重量与单价数据!A:K,11,0) -> 10 | P47: cm | Q47: =E47*K47*M47*O47/1000000 -> 0.0183 | R47: =VLOOKUP(B:B,重量与单价数据!A:C,3,0)/1000 -> 0.072 | S47: =VLOOKUP(B:B,重量与单价数据!A:E,5,0) -> 0.6 | T47: =VLOOKUP(B:B,重量与单价数据!A:D,4,0) -> 50
E48: ( 18 PCS/CTN, 18PCS) | G48: (@1.896 kgs) | I48: (@1.296kgs)
A49: 113 - 162 | B49: =INVOICE!B41 -> TAQEX-1125-ST-CB-70044 | E49: 50 | F49: CARTONS | G49: 46.5 | H49: KGS | I49: 21.5 | J49: KGS | K49: =VLOOKUP(B:B,重量与单价数据!A:I,9,0) -> 89 | L49: x | M49: =VLOOKUP(B:B,重量与单价数据!A:J,10,0) -> 14 | N49: x | O49: =VLOOKUP(B:B,重量与单价数据!A:K,11,0) -> 9 | P49: cm | Q49: =E49*K49*M49*O49/1000000 -> 0.5607 | R49: =VLOOKUP(B:B,重量与单价数据!A:C,3,0)/1000 -> 0.43 | S49: =VLOOKUP(B:B,重量与单价数据!A:E,5,0) -> 0.5 | T49: =VLOOKUP(B:B,重量与单价数据!A:D,4,0) -> 1
E50: ( 1 PCS/CTN, 50PCS) | G50: (@.93 kgs) | I50: (@.43kgs)
A51: 163 - 166 | B51: =INVOICE!B43 -> ULAUNCH145TS-46 | E51: 4 | F51: CARTONS | G51: 22.2 | H51: KGS | I51: 19.8 | J51: KGS | K51: =VLOOKUP(B:B,重量与单价数据!A:I,9,0) -> 122 | L51: x | M51: =VLOOKUP(B:B,重量与单价数据!A:J,10,0) -> 15 | N51: x | O51: =VLOOKUP(B:B,重量与单价数据!A:K,11,0) -> 10 | P51: cm | Q51: =E51*K51*M51*O51/1000000 -> 0.0732 | R51: =VLOOKUP(B:B,重量与单价数据!A:C,3,0)/1000 -> 0.099 | S51: =VLOOKUP(B:B,重量与单价数据!A:E,5,0) -> 0.6 | T51: =VLOOKUP(B:B,重量与单价数据!A:D,4,0) -> 50
E52: ( 50 PCS/CTN, 200PCS) | G52: (@5.55 kgs) | I52: (@4.95kgs)
A53: 167 - 167 | B53: =B51 -> ULAUNCH145TS-46 | E53: 1 | F53: CARTONS | G53: 3.966 | H53: KGS | I53: 3.366 | J53: KGS | K53: =VLOOKUP(B:B,重量与单价数据!A:I,9,0) -> 122 | L53: x | M53: =VLOOKUP(B:B,重量与单价数据!A:J,10,0) -> 15 | N53: x | O53: =VLOOKUP(B:B,重量与单价数据!A:K,11,0) -> 10 | P53: cm | Q53: =E53*K53*M53*O53/1000000 -> 0.0183 | R53: =VLOOKUP(B:B,重量与单价数据!A:C,3,0)/1000 -> 0.099
E54: ( 34 PCS/CTN, 34PCS) | G54: (@3.966 kgs) | I54: (@3.366kgs)
A55: 168 - 168 | B55: =INVOICE!B45 -> GSAL355IS-40-T | E55: 1 | F55: CARTONS | G55: 1.896 | H55: KGS | I55: 1.296 | J55: KGS | K55: =VLOOKUP(B:B,重量与单价数据!A:I,9,0) -> 122 | L55: x | M55: =VLOOKUP(B:B,重量与单价数据!A:J,10,0) -> 15 | N55: x | O55: =VLOOKUP(B:B,重量与单价数据!A:K,11,0) -> 10 | P55: cm | Q55: =E55*K55*M55*O55/1000000 -> 0.0183 | R55: =VLOOKUP(B:B,重量与单价数据!A:C,3,0)/1000 -> 0.072 | S55: =VLOOKUP(B:B,重量与单价数据!A:E,5,0) -> 0.6 | T55: =VLOOKUP(B:B,重量与单价数据!A:D,4,0) -> 50
E56: ( 18 PCS/CTN, 18PCS) | G56: (@1.896 kgs) | I56: (@1.296kgs)
A57: 169 - 169 | B57: =INVOICE!B47 -> CCM-V8-TT-4556 | E57: 1 | F57: CARTONS | G57: 10.98 | H57: KGS | I57: 9.5 | J57: KGS | K57: =VLOOKUP(B:B,重量与单价数据!A:I,9,0) -> 145 | L57: x | M57: =VLOOKUP(B:B,重量与单价数据!A:J,10,0) -> 29 | N57: x | O57: =VLOOKUP(B:B,重量与单价数据!A:K,11,0) -> 16 | P57: cm | Q57: =E57*K57*M57*O57/1000000 -> 0.06728 | R57: =VLOOKUP(B:B,重量与单价数据!A:C,3,0)/1000 -> 0.38 | S57: =VLOOKUP(B:B,重量与单价数据!A:E,5,0) -> 1.48 | T57: =VLOOKUP(B:B,重量与单价数据!A:D,4,0) -> 50
E58: ( 25 PCS/CTN, 25PCS) | G58: (@10.98 kgs) | I58: (@9.5kgs)
A59: 170 - 171 | B59: =INVOICE!B49 -> SHR-RM19-P225-G01L-57 | E59: 2 | F59: CARTONS | G59: 22.2 | H59: KGS | I59: 17.76 | J59: KGS | K59: =VLOOKUP(B:B,重量与单价数据!A:I,9,0) -> 179 | L59: x | M59: =VLOOKUP(B:B,重量与单价数据!A:J,10,0) -> 42 | N59: x | O59: =VLOOKUP(B:B,重量与单价数据!A:K,11,0) -> 15 | P59: cm | Q59: =E59*K59*M59*O59/1000000 -> 0.22554 | R59: =VLOOKUP(B:B,重量与单价数据!A:C,3,0)/1000 -> 0.74 | S59: =VLOOKUP(B:B,重量与单价数据!A:E,5,0) -> 2.22 | T59: =VLOOKUP(B:B,重量与单价数据!A:D,4,0) -> 12
E60: ( 12 PCS/CTN, 24PCS) | G60: (@11.1 kgs) | I60: (@8.88kgs)
A61: 172 - 172 | B61: =B59 -> SHR-RM19-P225-G01L-57 | E61: 1 | F61: CARTONS | G61: 2.96 | H61: KGS | I61: 0.74 | J61: KGS | K61: =VLOOKUP(B:B,重量与单价数据!A:I,9,0) -> 179 | L61: x | M61: =VLOOKUP(B:B,重量与单价数据!A:J,10,0) -> 42 | N61: x | O61: =VLOOKUP(B:B,重量与单价数据!A:K,11,0) -> 15 | P61: cm | Q61: =E61*K61*M61*O61/1000000 -> 0.11277 | R61: =VLOOKUP(B:B,重量与单价数据!A:C,3,0)/1000 -> 0.74
E62: ( 1 PCS/CTN, 1PCS) | G62: (@2.96 kgs) | I62: (@.74kgs)
A63: 173 - 174 | B63: =INVOICE!B51 -> SHR-RM19-P225-G01L-57 | E63: 2 | F63: CARTONS | G63: 22.2 | H63: KGS | I63: 17.76 | J63: KGS | K63: =VLOOKUP(B:B,重量与单价数据!A:I,9,0) -> 179 | L63: x | M63: =VLOOKUP(B:B,重量与单价数据!A:J,10,0) -> 42 | N63: x | O63: =VLOOKUP(B:B,重量与单价数据!A:K,11,0) -> 15 | P63: cm | Q63: =E63*K63*M63*O63/1000000 -> 0.22554 | R63: =VLOOKUP(B:B,重量与单价数据!A:C,3,0)/1000 -> 0.74 | S63: =VLOOKUP(B:B,重量与单价数据!A:E,5,0) -> 2.22 | T63: =VLOOKUP(B:B,重量与单价数据!A:D,4,0) -> 12
E64: ( 12 PCS/CTN, 24PCS) | G64: (@11.1 kgs) | I64: (@8.88kgs)
A65: 175 - 175 | B65: =B63 -> SHR-RM19-P225-G01L-57 | E65: 1 | F65: CARTONS | G65: 2.96 | H65: KGS | I65: 0.74 | J65: KGS | K65: =VLOOKUP(B:B,重量与单价数据!A:I,9,0) -> 179 | L65: x | M65: =VLOOKUP(B:B,重量与单价数据!A:J,10,0) -> 42 | N65: x | O65: =VLOOKUP(B:B,重量与单价数据!A:K,11,0) -> 15 | P65: cm | Q65: =E65*K65*M65*O65/1000000 -> 0.11277 | R65: =VLOOKUP(B:B,重量与单价数据!A:C,3,0)/1000 -> 0.74
E66: ( 1 PCS/CTN, 1PCS) | G66: (@2.96 kgs) | I66: (@.74kgs)
B69: TOTAL: | C69: 175 | D69: CARTONS/ | E69: 1355 | F69: (PCS) | G69: =SUM(G$1:G68) -> 440.212 | H69: KGS | I69: =SUM(I$1:I68) -> 322.332 | J69: KGS | Q69: =IF(TYPE(VLOOKUP(B:B,#REF!,8,0))=16,"",VLOOKUP(B:B,#REF!,8,0)) -> 
A70: REMARK: | Q70: =IF(TYPE(VLOOKUP(B:B,#REF!,8,0))=16,"",VLOOKUP(B:B,#REF!,8,0)) -> 
A71: 1. Pallet QTY: | D71: Pallet(s) | Q71: =IF(TYPE(VLOOKUP(B:B,#REF!,8,0))=16,"",VLOOKUP(B:B,#REF!,8,0)) -> 
A72: 2.Ture Temper Order Number: | Q72: =IF(TYPE(VLOOKUP(B:B,#REF!,8,0))=16,"",VLOOKUP(B:B,#REF!,8,0)) -> 
A73: 3.Customer Name:
A74: 4.Ship to:
A75: 5.Delivery NO:
A76: 6.Method of Transportation :
A77: 7.Packing requirement:
A78: 8. Other Detail Description: | C78: =VLOOKUP($C$73,'[1]物料编码对照表&客户要求'!E$1:F$65536,2,0) -> 
G79: Ji Neng Composite Material& Products (Guangzhou) Co., Ltd. | Q79: =IF(TYPE(VLOOKUP(B:B,#REF!,8,0))=16,"",VLOOKUP(B:B,#REF!,8,0)) -> 

Sheet 重量与单价数据
A1: SKU | B1: Price | C1: Item weight(gross) | D1: packed qty | E1: gross weight | F1: company sp | G1: type | H1: carton size | I1: carton(length) | J1: carton(width) | K1: carton(height) | L1: engineer data | M1: on-hand QTY | N1: estimated weight | O1: Weight weighed
A2: AUCRULRLSIL-38 | B2: 9 | C2: 74 | D2: 50 | E2: 0.6 | F2: 1 | G2: golf | H2: 122*15*10 | I2: 122 | J2: 15 | K2: 10 | M2: 12 | N2: Y
A3: AUCRULRLSIM-40 | B3: 9 | C3: 74 | D3: 50 | E3: 0.6 | F3: 2 | G3: golf | H3: 122*15*10 | I3: 122 | J3: 15 | K3: 10 | M3: 24 | N3: Y
A4: AUCRULRLSWL-44 | B4: 9 | C4: 74 | D4: 50 | E4: 0.6 | F4: 3 | G4: golf | H4: 122*15*10 | I4: 122 | J4: 15 | K4: 10 | M4: 3 | N4: Y
A5: AUPL-76-WA-46 | B5: 9 | C5: 65 | D5: 50 | E5: 0.6 | F5: 4 | G5: golf | H5: 122*15*10 | I5: 122 | J5: 15 | K5: 10 | L5: 59-65 | M5: 0
A6: AUPL-76-WS-46 | B6: 9 | C6: 70 | D6: 50 | E6: 0.6 | F6: 5 | G6: golf | H6: 122*15*10 | I6: 122 | J6: 15 | K6: 10 | L6: 64－70 | M6: 0
A7: I19A-55PA-03600 | B7: 9 | C7: 71 | D7: 50 | E7: 0.6 | F7: 6 | G7: golf | H7: 122*15*10 | I7: 122 | J7: 15 | K7: 10 | L7: 67-71 | M7: 0
A8: I19A-55PR-03600 | B8: 9 | C8: 73 | D8: 50 | E8: 0.6 | F8: 7 | G8: golf | H8: 122*15*10 | I8: 122 | J8: 15 | K8: 10 | L8: 69-73 | M8: 0
A9: I19A-55PS-03600 | B9: 9 | C9: 75 | D9: 50 | E9: 0.6 | F9: 8 | G9: golf | H9: 122*15*10 | I9: 122 | J9: 15 | K9: 10 | L9: 71-75 | M9: 0
A10: I19A-60PA-03600 | B10: 9 | C10: 71 | D10: 50 | E10: 0.6 | F10: 9 | G10: golf | H10: 122*15*10 | I10: 122 | J10: 15 | K10: 10 | L10: 67-71 | M10: 0
A11: I19A-60PR-03600 | B11: 9 | C11: 73 | D11: 50 | E11: 0.6 | F11: 10 | G11: golf | H11: 122*15*10 | I11: 122 | J11: 15 | K11: 10 | L11: 69-73 | M11: 0
A12: I19A-60PS-03600 | B12: 9 | C12: 75 | D12: 50 | E12: 0.6 | F12: 11 | G12: golf | H12: 122*15*10 | I12: 122 | J12: 15 | K12: 10 | L12: 71-75 | M12: 0
A13: I19A-65PA-03600 | B13: 9 | C13: 71 | D13: 50 | E13: 0.6 | F13: 12 | G13: golf | H13: 122*15*10 | I13: 122 | J13: 15 | K13: 10 | L13: 67-71 | M13: 0
A14: I19A-65PR-03600 | B14: 9 | C14: 73 | D14: 50 | E14: 0.6 | F14: 13 | G14: golf | H14: 122*15*10 | I14: 122 | J14: 15 | K14: 10 | L14: 69-73 | M14: 0
A15: I19A-65PS-03600 | B15: 9 | C15: 75 | D15: 50 | E15: 0.6 | F15: 14 | G15: golf | H15: 122*15*10 | I15: 122 | J15: 15 | K15: 10 | L15: 71-75 | M15: 0
A16: I19A-70PA-03600 | B16: 9 | C16: 71 | D16: 50 | E16: 0.6 | F16: 15 | G16: golf | H16: 122*15*10 | I16: 122 | J16: 15 | K16: 10 | L16: 67-71 | M16: 0
A17: I19A-70PR-03600 | B17: 9 | C17: 73 | D17: 50 | E17: 0.6 | F17: 16 | G17: golf | H17: 122*15*10 | I17: 122 | J17: 15 | K17: 10 | L17: 69-73 | M17: 0
A18: I19A-70PS-03600 | B18: 9 | C18: 75 | D18: 50 | E18: 0.6 | F18: 17 | G18: golf | H18: 122*15*10 | I18: 122 | J18: 15 | K18: 10 | L18: 71-75 | M18: 0
A19: I19A-75PA-03600 | B19: 9 | C19: 71 | D19: 50 | E19: 0.6 | F19: 18 | G19: golf | H19: 122*15*10 | I19: 122 | J19: 15 | K19: 10 | L19: 67-71 | M19: 0
A20: I19A-75PR-03600 | B20: 9 | C20: 73 | D20: 50 | E20: 0.6 | F20: 19 | G20: golf | H20: 122*15*10 | I20: 122 | J20: 15 | K20: 10 | L20: 69-73 | M20: 0
A21: I19A-75PS-03600 | B21: 9 | C21: 75 | D21: 50 | E21: 0.6 | F21: 20 | G21: golf | H21: 122*15*10 | I21: 122 | J21: 15 | K21: 10 | L21: 71-75 | M21: 0
A22: I19A-80PA-03600 | B22: 9 | C22: 71 | D22: 50 | E22: 0.6 | F22: 21 | G22: golf | H22: 122*15*10 | I22: 122 | J22: 15 | K22: 10 | L22: 67-71 | M22: 0
A23: I19A-80PR-03600 | B23: 9 | C23: 73 | D23: 50 | E23: 0.6 | F23: 22 | G23: golf | H23: 122*15*10 | I23: 122 | J23: 15 | K23: 10 | L23: 69-73 | M23: 0
A24: I19A-80PS-03600 | B24: 9 | C24: 75 | D24: 50 | E24: 0.6 | F24: 23 | G24: golf | H24: 122*15*10 | I24: 122 | J24: 15 | K24: 10 | L24: 71-75 | M24: 0
A25: I19A-85PA-03600 | B25: 9 | C25: 71 | D25: 50 | E25: 0.6 | F25: 24 | G25: golf | H25: 122*15*10 | I25: 122 | J25: 15 | K25: 10 | L25: 67-71 | M25: 0
A26: I19A-85PR-03600 | B26: 9 | C26: 73 | D26: 50 | E26: 0.6 | F26: 25 | G26: golf | H26: 122*15*10 | I26: 122 | J26: 15 | K26: 10 | L26: 69-73 | M26: 0
A27: I19A-85PS-03600 | B27: 9 | C27: 75 | D27: 50 | E27: 0.6 | F27: 26 | G27: golf | H27: 122*15*10 | I27: 122 | J27: 15 | K27: 10 | L27: 71-75 | M27: 0
A28: I19A-90PA-03600 | B28: 9 | C28: 71 | D28: 50 | E28: 0.6 | F28: 27 | G28: golf | H28: 122*15*10 | I28: 122 | J28: 15 | K28: 10 | L28: 67-71 | M28: 0
A29: I19A-90PR-03600 | B29: 9 | C29: 73 | D29: 50 | E29: 0.6 | F29: 28 | G29: golf | H29: 122*15*10 | I29: 122 | J29: 15 | K29: 10 | L29: 69-73 | M29: 0
A30: I19A-90PS-03600 | B30: 9 | C30: 75 | D30: 50 | E30: 0.6 | F30: 29 | G30: golf | H30: 122*15*10 | I30: 122 | J30: 15 | K30: 10 | L30: 71-75 | M30: 0
A31: I19A-95PA-03600 | B31: 9 | C31: 71 | D31: 50 | E31: 0.6 | F31: 30 | G31: golf | H31: 122*15*10 | I31: 122 | J31: 15 | K31: 10 | L31: 67-71 | M31: 0
A32: I19A-95PR-03600 | B32: 9 | C32: 73 | D32: 50 | E32: 0.6 | F32: 31 | G32: golf | H32: 122*15*10 | I32: 122 | J32: 15 | K32: 10 | L32: 69-73 | M32: 0
A33: I19A-95PS-03600 | B33: 9 | C33: 75 | D33: 50 | E33: 0.6 | F33: 32 | G33: golf | H33: 122*15*10 | I33: 122 | J33: 15 | K33: 10 | L33: 71-75 | M33: 0
A34: LAUNCHHYIA-41 | B34: 9 | C34: 77 | D34: 50 | E34: 0.6 | F34: 33 | G34: golf | H34: 122*15*10 | I34: 122 | J34: 15 | K34: 10 | L34: 71-77 | M34: 67
A35: LAUNCHHYIR-41 | B35: 9 | C35: 83 | D35: 50 | E35: 0.6 | F35: 34 | G35: golf | H35: 122*15*10 | I35: 122 | J35: 15 | K35: 10 | L35: 77-83 | M35: 185
A36: LAUNCHHYIS-41 | B36: 9 | C36: 84 | D36: 50 | E36: 0.6 | F36: 35 | G36: golf | H36: 122*15*10 | I36: 122 | J36: 15 | K36: 10 | L36: 78-84 | M36: 56
A37: LAUNCHHYIX-41 | B37: 9 | C37: 85 | D37: 50 | E37: 0.6 | F37: 36 | G37: golf | H37: 122*15*10 | I37: 122 | J37: 15 | K37: 10 | L37: 79-85 | M37: 337
A38: M18L-P-L-22745 | B38: 9 | C38: 64 | D38: 50 | E38: 0.6 | F38: 37 | G38: golf | H38: 122*15*10 | I38: 122 | J38: 15 | K38: 10 | L38: 58-64 | M38: 0
A39: MGBGA-45 | B39: 9 | C39: 78 | D39: 50 | E39: 0.6 | F39: 38 | G39: golf | H39: 122*15*10 | I39: 122 | J39: 15 | K39: 10 | L39: 70-78 | M39: 0
A40: MGBGL-45 | B40: 9 | C40: 78 | D40: 50 | E40: 0.6 | F40: 39 | G40: golf | H40: 122*15*10 | I40: 122 | J40: 15 | K40: 10 | L40: 70-78 | M40: 0
A41: MGBGR3-45 | B41: 9 | C41: 82 | D41: 50 | E41: 0.6 | F41: 40 | G41: golf | H41: 122*15*10 | I41: 122 | J41: 15 | K41: 10 | L41: 74-82 | M41: 50
A42: OGWX-46 | B42: 9 | C42: 70 | D42: 50 | E42: 0.6 | F42: 41 | G42: golf | H42: 122*15*10 | I42: 122 | J42: 15 | K42: 10 | M42: 24 | N42: Y | O42: Y
A43: SHR-ECL-08563 | B43: 9 | C43: 364 | D43: 50 | E43: 1.6 | F43: 42 | G43: Shaft | H43: 183*29*16 | I43: 183 | J43: 29 | K43: 16 | L43: 352-364 | M43: 98
A44: SHR-ECL-09563 | B44: 9 | C44: 375 | D44: 50 | E44: 1.6 | F44: 43 | G44: Shaft | H44: 183*29*16 | I44: 183 | J44: 29 | K44: 16 | L44: 363-375 | M44: 18
A45: SHR-ECL-10563 | B45: 9 | C45: 384 | D45: 50 | E45: 1.6 | F45: 44 | G45: Shaft | H45: 183*29*16 | I45: 183 | J45: 29 | K45: 16 | L45: 372-384 | M45: 235
A46: SHR-TEN-TF | B46: 9 | C46: 75 | D46: 60 | E46: 0.2 | F46: 45 | G46: tennon | H46: 45*26*8 | I46: 45 | J46: 26 | K46: 8 | M46: 405 | N46: Y
A47: SHR-TF-09552P | B47: 9 | C47: 329 | D47: 50 | E47: 1.48 | F47: 46 | G47: Shaft | H47: 145*29*16 | I47: 145 | J47: 29 | K47: 16 | L47: 315-329 | M47: 0
A48: SHR-TF-10552P | B48: 9 | C48: 339 | D48: 50 | E48: 1.48 | F48: 47 | G48: Shaft | H48: 145*29*16 | I48: 145 | J48: 29 | K48: 16 | L48: 325-339 | M48: 0
A49: SHR-TF-11552P | B49: 9 | C49: 364 | D49: 50 | E49: 1.48 | F49: 48 | G49: Shaft | H49: 145*29*16 | I49: 145 | J49: 29 | K49: 16 | L49: 350-364 | M49: 25
A50: TITUNPLFWR-44 | B50: 9 | C50: 73 | D50: 50 | E50: 0.6 | F50: 49 | G50: golf | H50: 122*15*10 | I50: 122 | J50: 15 | K50: 10 | L50: 67-73 | M50: 0
A51: TITUNPLFWS-44 | B51: 9 | C51: 75 | D51: 50 | E51: 0.6 | F51: 50 | G51: golf | H51: 122*15*10 | I51: 122 | J51: 15 | K51: 10 | L51: 69-75 | M51: 0
A52: TITUNPLFWX-44 | B52: 9 | C52: 77 | D52: 50 | E52: 0.6 | F52: 51 | G52: golf | H52: 122*15*10 | I52: 122 | J52: 15 | K52: 10 | L52: 71-77 | M52: 0
A53: TITUNPLWR-46 | B53: 9 | C53: 65 | D53: 50 | E53: 0.6 | F53: 52 | G53: golf | H53: 122*15*10 | I53: 122 | J53: 15 | K53: 10 | L53: 59-65 | M53: 10
A54: TITUNPLWS-46 | B54: 9 | C54: 67 | D54: 50 | E54: 0.6 | F54: 53 | G54: golf | H54: 122*15*10 | I54: 122 | J54: 15 | K54: 10 | L54: 61-67 | M54: 9
A55: TTSW-37 | B55: 9 | C55: 108 | D55: 50 | E55: 0.6 | F55: 54 | G55: golf | H55: 122*15*10 | I55: 122 | J55: 15 | K55: 10 | L55: 104-108 | M55: 0
A56: UACLIC-43 | B56: 9 | C56: 85 | D56: 50 | E56: 0.6 | F56: 55 | G56: golf | H56: 122*15*10 | I56: 122 | J56: 15 | K56: 10 | L56: 77-85 | M56: 85
A57: UACLIL-42 | B57: 9 | C57: 84 | D57: 50 | E57: 0.6 | F57: 56 | G57: golf | H57: 122*15*10 | I57: 122 | J57: 15 | K57: 10 | L57: 76-84 | M57: 1
A58: UACLWC-48 | B58: 9 | C58: 77 | D58: 50 | E58: 0.64 | F58: 57 | G58: golf | H58: 130*15*10 | I58: 130 | J58: 15 | K58: 10 | L58: 71-77 | M58: 798
A59: UACLWL-45 | B59: 9 | C59: 64 | D59: 50 | E59: 0.6 | F59: 58 | G59: golf | H59: 122*15*10 | I59: 122 | J59: 15 | K59: 10 | L59: 58-64 | M59: 10
A60: UBEPRO6533WR-45 | B60: 9 | C60: 72 | D60: 50 | E60: 0.6 | F60: 59 | G60: golf | H60: 122*15*10 | I60: 122 | J60: 15 | K60: 10 | L60: 66-72 | M60: 0
A61: UBLU433WR-46 | B61: 9 | C61: 46 | D61: 50 | E61: 0.6 | F61: 60 | G61: golf | H61: 122*15*10 | I61: 122 | J61: 15 | K61: 10 | L61: 40-46 | M61: 0
A62: UBLU533WR-46 | B62: 9 | C62: 59 | D62: 50 | E62: 0.6 | F62: 61 | G62: golf | H62: 122*15*10 | I62: 122 | J62: 15 | K62: 10 | L62: 53-59 | M62: 0
A63: UBLU533WS-46 | B63: 9 | C63: 60 | D63: 50 | E63: 0.6 | F63: 62 | G63: golf | H63: 122*15*10 | I63: 122 | J63: 15 | K63: 10 | L63: 54-60 | M63: 0
A64: UBLU533WX-46 | B64: 9 | C64: 61 | D64: 50 | E64: 0.6 | F64: 63 | G64: golf | H64: 122*15*10 | I64: 122 | J64: 15 | K64: 10 | L64: 55-61 | M64: 0
A65: UBLU633WR-46 | B65: 9 | C65: 67 | D65: 50 | E65: 0.6 | F65: 64 | G65: golf | H65: 122*15*10 | I65: 122 | J65: 15 | K65: 10 | L65: 61-67 | M65: 371
A66: UBLU633WS-46 | B66: 9 | C66: 68 | D66: 50 | E66: 0.6 | F66: 65 | G66: golf | H66: 122*15*10 | I66: 122 | J66: 15 | K66: 10 | L66: 62-68 | M66: 292
A67: UBLU633WX-46 | B67: 9 | C67: 67 | D67: 50 | E67: 0.6 | F67: 66 | G67: golf | H67: 122*15*10 | I67: 122 | J67: 15 | K67: 10 | L67: 61-67 | M67: 1
A68: UBLU635WR-46 | B68: 9 | C68: 70 | D68: 50 | E68: 0.6 | F68: 67 | G68: golf | H68: 122*15*10 | I68: 122 | J68: 15 | K68: 10 | L68: 64-70 | M68: 124
A69: UBLU635WR-46-BT | B69: 9 | C69: 69 | D69: 50 | E69: 0.6 | F69: 68 | G69: golf | H69: 122*15*10 | I69: 122 | J69: 15 | K69: 10 | L69: 63-69 | M69: 92
A70: UBLU635WS-46 | B70: 9 | C70: 69 | D70: 50 | E70: 0.6 | F70: 69 | G70: golf | H70: 122*15*10 | I70: 122 | J70: 15 | K70: 10 | L70: 63-69 | M70: 13
A71: UBLU635WS-46-BT | B71: 9 | C71: 69 | D71: 50 | E71: 0.6 | F71: 70 | G71: golf | H71: 122*15*10 | I71: 122 | J71: 15 | K71: 10 | L71: 63-69 | M71: 128
A72: UBLU635WX-46 | B72: 9 | C72: 69 | D72: 50 | E72: 0.6 | F72: 71 | G72: golf | H72: 122*15*10 | I72: 122 | J72: 15 | K72: 10 | L72: 63-69 | M72: 15
A73: UBLU635WX-46-BT | B73: 9 | C73: 69 | D73: 50 | E73: 0.6 | F73: 72 | G73: golf | H73: 122*15*10 | I73: 122 | J73: 15 | K73: 10 | L73: 63-69 | M73: 121
A74: UBLU733FPS-46 | B74: 9 | C74: 78 | D74: 50 | E74: 0.6 | F74: 73 | G74: golf | H74: 122*15*10 | I74: 122 | J74: 15 | K74: 10 | L74: 72-78 | M74: 15
A75: UBLU733WR-46 | B75: 9 | C75: 76 | D75: 50 | E75: 0.6 | F75: 74 | G75: golf | H75: 122*15*10 | I75: 122 | J75: 15 | K75: 10 | L75: 70-76 | M75: 360
A76: UBLU733WS-46 | B76: 9 | C76: 78 | D76: 50 | E76: 0.6 | F76: 75 | G76: golf | H76: 122*15*10 | I76: 122 | J76: 15 | K76: 10 | L76: 72-78 | M76: 249
A77: UBLU733WX-46 | B77: 9 | C77: 80 | D77: 50 | E77: 0.6 | F77: 76 | G77: golf | H77: 122*15*10 | I77: 122 | J77: 15 | K77: 10 | L77: 74-80 | M77: 36
A78: UBLU735WR-46 | B78: 9 | C78: 81 | D78: 50 | E78: 0.6 | F78: 77 | G78: golf | H78: 122*15*10 | I78: 122 | J78: 15 | K78: 10 | L78: 75-81 | M78: 17
A79: UBLU735WS-46 | B79: 9 | C79: 80 | D79: 50 | E79: 0.6 | F79: 78 | G79: golf | H79: 122*15*10 | I79: 122 | J79: 15 | K79: 10 | L79: 74-80 | M79: 10
A80: UBLU735WX-46 | B80: 9 | C80: 82 | D80: 50 | E80: 0.6 | F80: 79 | G80: golf | H80: 122*15*10 | I80: 122 | J80: 15 | K80: 10 | L80: 76-82 | M80: 0
A81: UBLU933WS-46 | B81: 9 | C81: 96 | D81: 50 | E81: 0.6 | F81: 80 | G81: golf | H81: 122*15*10 | I81: 122 | J81: 15 | K81: 10 | L81: 90-96 | M81: 19
A82: UBLU933WX-46 | B82: 9 | C82: 96 | D82: 50 | E82: 0.6 | F82: 81 | G82: golf | H82: 122*15*10 | I82: 122 | J82: 15 | K82: 10 | L82: 90-96 | M82: 0
A83: UBLULD33-50-1X2X | B83: 9 | C83: 77 | D83: 50 | E83: 0.64 | F83: 82 | G83: golf | H83: 130*15*10 | I83: 130 | J83: 15 | K83: 10 | L83: 71-77 | M83: 0
A84: UBLULD33-50-2X3X | B84: 9 | C84: 78 | D84: 50 | E84: 0.64 | F84: 83 | G84: golf | H84: 130*15*10 | I84: 130 | J84: 15 | K84: 10 | L84: 72-78 | M84: 0
A85: UBLULD33-50-4X5X | B85: 9 | C85: 79 | D85: 50 | E85: 0.64 | F85: 84 | G85: golf | H85: 130*15*10 | I85: 130 | J85: 15 | K85: 10 | L85: 73-79 | M85: 17
A86: UBLUTIT33WR-46 | B86: 9 | C86: 69 | D86: 50 | E86: 0.6 | F86: 85 | G86: golf | H86: 122*15*10 | I86: 122 | J86: 15 | K86: 10 | L86: 63-69 | M86: 89
A87: UBLUTIT33WS-46 | B87: 9 | C87: 68 | D87: 50 | E87: 0.6 | F87: 86 | G87: golf | H87: 122*15*10 | I87: 122 | J87: 15 | K87: 10 | L87: 62-68 | M87: 3
A88: UBLUTIT33WX-46 | B88: 9 | C88: 68 | D88: 50 | E88: 0.6 | F88: 87 | G88: golf | H88: 122*15*10 | I88: 122 | J88: 15 | K88: 10 | L88: 62-68 | M88: 7
A89: UBLUTW33WX-46 | B89: 9 | C89: 98 | D89: 50 | E89: 0.6 | F89: 88 | G89: golf | H89: 122*15*10 | I89: 122 | J89: 15 | K89: 10 | L89: 92-98 | M89: 14
A90: UBROP6533WL-45 | B90: 9 | C90: 64 | D90: 50 | E90: 0.6 | F90: 89 | G90: golf | H90: 122*15*10 | I90: 122 | J90: 15 | K90: 10 | L90: 58-64 | M90: 0
A91: UBROP6533WR-45 | B91: 9 | C91: 72 | D91: 50 | E91: 0.6 | F91: 90 | G91: golf | H91: 122*15*10 | I91: 122 | J91: 15 | K91: 10 | L91: 66-72 | M91: 0
A92: UBROP6533WS-45 | B92: 9 | C92: 74 | D92: 50 | E92: 0.6 | F92: 91 | G92: golf | H92: 122*15*10 | I92: 122 | J92: 15 | K92: 10 | L92: 68-74 | M92: 23
A93: UBROP70IL-40 | B93: 9 | C93: 82 | D93: 50 | E93: 0.6 | F93: 92 | G93: golf | H93: 122*15*10 | I93: 122 | J93: 15 | K93: 10 | L93: 76-82 | M93: 0
A94: UBROP70IR-40 | B94: 9 | C94: 82 | D94: 50 | E94: 0.6 | F94: 93 | G94: golf | H94: 122*15*10 | I94: 122 | J94: 15 | K94: 10 | L94: 76-82 | M94: 0
A95: UBROP70IS-40 | B95: 9 | C95: 80 | D95: 50 | E95: 0.6 | F95: 94 | G95: golf | H95: 122*15*10 | I95: 122 | J95: 15 | K95: 10 | L95: 74-80 | M95: 0
A96: UEI233WR-46 | B96: 9 | C96: 78 | D96: 50 | E96: 0.6 | F96: 95 | G96: golf | H96: 122*15*10 | I96: 122 | J96: 15 | K96: 10 | L96: 72-78 | M96: 0
A97: UEI233WR-46-DG | B97: 9 | C97: 78 | D97: 50 | E97: 0.6 | F97: 96 | G97: golf | H97: 122*15*10 | I97: 122 | J97: 15 | K97: 10 | L97: 72-78 | M97: 0
A98: UEI233WS-46 | B98: 9 | C98: 81 | D98: 50 | E98: 0.6 | F98: 97 | G98: golf | H98: 122*15*10 | I98: 122 | J98: 15 | K98: 10 | L98: 75-81 | M98: 0
A99: UEI233WS-46-DG | B99: 9 | C99: 81 | D99: 50 | E99: 0.6 | F99: 98 | G99: golf | H99: 122*15*10 | I99: 122 | J99: 15 | K99: 10 | L99: 75-81 | M99: 0
A100: UEI233WX-46 | B100: 9 | C100: 81 | D100: 50 | E100: 0.6 | F100: 99 | G100: golf | H100: 122*15*10 | I100: 122 | J100: 15 | K100: 10 | L100: 75-81 | M100: 0
A101: UEI233WXX-46 | B101: 9 | C101: 82 | D101: 50 | E101: 0.6 | F101: 100 | G101: golf | H101: 122*15*10 | I101: 122 | J101: 15 | K101: 10 | L101: 76-82 | M101: 0
A102: UEI235WR-46 | B102: 9 | C102: 79 | D102: 50 | E102: 0.6 | F102: 101 | G102: golf | H102: 122*15*10 | I102: 122 | J102: 15 | K102: 10 | L102: 73-79 | M102: 0
A103: UEI235WS-46 | B103: 9 | C103: 83 | D103: 50 | E103: 0.6 | F103: 102 | G103: golf | H103: 122*15*10 | I103: 122 | J103: 15 | K103: 10 | L103: 77-83 | M103: 0
A104: UEI235WX-46 | B104: 9 | C104: 84 | D104: 50 | E104: 0.6 | F104: 103 | G104: golf | H104: 122*15*10 | I104: 122 | J104: 15 | K104: 10 | L104: 78-84 | M104: 0
A105: UGSAL33WA-45 | B105: 9 | C105: 68 | D105: 50 | E105: 0.6 | F105: 104 | G105: golf | H105: 122*15*10 | I105: 122 | J105: 15 | K105: 10 | L105: 62-68 | M105: 381
A106: UGSAL33WL-45 | B106: 9 | C106: 64 | D106: 50 | E106: 0.6 | F106: 105 | G106: golf | H106: 122*15*10 | I106: 122 | J106: 15 | K106: 10 | L106: 58-64 | M106: 43
A107: UGSAL33WR-45 | B107: 9 | C107: 72 | D107: 50 | E107: 0.6 | F107: 106 | G107: golf | H107: 122*15*10 | I107: 122 | J107: 15 | K107: 10 | L107: 66-72 | M107: 0
A108: UGSAL33WS-45 | B108: 9 | C108: 74 | D108: 50 | E108: 0.6 | F108: 107 | G108: golf | H108: 122*15*10 | I108: 122 | J108: 15 | K108: 10 | L108: 68-74 | M108: 0
A109: UGSAL37IA-40 | B109: 9 | C109: 66 | D109: 50 | E109: 0.6 | F109: 108 | G109: golf | H109: 122*15*10 | I109: 122 | J109: 15 | K109: 10 | L109: 60-66 | M109: 6
A110: UGSAL37IL-40 | B110: 9 | C110: 65 | D110: 50 | E110: 0.6 | F110: 109 | G110: golf | H110: 122*15*10 | I110: 122 | J110: 15 | K110: 10 | L110: 59-65 | M110: 5
A111: UGSAL37IR-40 | B111: 9 | C111: 69 | D111: 50 | E111: 0.6 | F111: 110 | G111: golf | H111: 122*15*10 | I111: 122 | J111: 15 | K111: 10 | L111: 63-69 | M111: 80
A112: UGSAL37IS-40 | B112: 9 | C112: 72 | D112: 50 | E112: 0.6 | F112: 111 | G112: golf | H112: 122*15*10 | I112: 122 | J112: 15 | K112: 10 | L112: 66-72 | M112: 289
A113: UGSMX3IC-43 | B113: 9 | C113: 74 | D113: 50 | E113: 0.6 | F113: 112 | G113: golf | H113: 122*15*10 | I113: 122 | J113: 15 | K113: 10 | L113: 68-74 | M113: 0
A114: UGSSA33WA-45 | B114: 9 | C114: 65 | D114: 50 | E114: 0.6 | F114: 113 | G114: golf | H114: 122*15*10 | I114: 122 | J114: 15 | K114: 10 | L114: 59-65 | M114: 22
A115: UGSSA33WL-45 | B115: 9 | C115: 65 | D115: 50 | E115: 0.6 | F115: 114 | G115: golf | H115: 122*15*10 | I115: 122 | J115: 15 | K115: 10 | L115: 59-65 | M115: 28
A116: UGSSA33WR-45 | B116: 9 | C116: 67 | D116: 50 | E116: 0.6 | F116: 115 | G116: golf | H116: 122*15*10 | I116: 122 | J116: 15 | K116: 10 | L116: 61-67 | M116: 0
A117: UGSSA33WS-45 | B117: 9 | C117: 70 | D117: 50 | E117: 0.6 | F117: 116 | G117: golf | H117: 122*15*10 | I117: 122 | J117: 15 | K117: 10 | L117: 64-70 | M117: 0
A118: UHBGS2IL-395 | B118: 9 | C118: 80 | D118: 50 | E118: 0.6 | F118: 117 | G118: golf | H118: 122*15*10 | I118: 122 | J118: 15 | K118: 10 | M118: 11 | N118: Y | O118: y
A119: UHBGS2IM-41 | B119: 9 | C119: 80 | D119: 50 | E119: 0.6 | F119: 118 | G119: golf | H119: 122*15*10 | I119: 122 | J119: 15 | K119: 10 | M119: 22 | N119: Y | O119: y
A120: UHBGS2WM-465 | B120: 9 | C120: 80 | D120: 50 | E120: 0.6 | F120: 119 | G120: golf | H120: 122*15*10 | I120: 122 | J120: 15 | K120: 10 | M120: 21 | N120: Y | O120: y
A121: ULAUNCH433WA-46 | B121: 9 | C121: 46 | D121: 50 | E121: 0.6 | F121: 120 | G121: golf | H121: 122*15*10 | I121: 122 | J121: 15 | K121: 10 | L121: 40-46 | M121: 10
A122: ULAUNCH433WL-46 | B122: 9 | C122: 47 | D122: 50 | E122: 0.6 | F122: 121 | G122: golf | H122: 122*15*10 | I122: 122 | J122: 15 | K122: 10 | L122: 41-47 | M122: 0
A123: ULAUNCH433WR-46 | B123: 9 | C123: 46 | D123: 50 | E123: 0.6 | F123: 122 | G123: golf | H123: 122*15*10 | I123: 122 | J123: 15 | K123: 10 | L123: 40-46 | M123: 314
A124: ULAUNCH433WS-46 | B124: 9 | C124: 51 | D124: 50 | E124: 0.6 | F124: 123 | G124: golf | H124: 122*15*10 | I124: 122 | J124: 15 | K124: 10 | L124: 45-51 | M124: 0
A125: ULAUNCH435WA-46 | B125: 9 | C125: 48 | D125: 50 | E125: 0.6 | F125: 124 | G125: golf | H125: 122*15*10 | I125: 122 | J125: 15 | K125: 10 | L125: 42-48 | M125: 11
A126: ULAUNCH435WL-46 | B126: 9 | C126: 47 | D126: 50 | E126: 0.6 | F126: 125 | G126: golf | H126: 122*15*10 | I126: 122 | J126: 15 | K126: 10 | L126: 41-47 | M126: 54
A127: ULAUNCH435WR-46 | B127: 9 | C127: 47 | D127: 50 | E127: 0.6 | F127: 126 | G127: golf | H127: 122*15*10 | I127: 122 | J127: 15 | K127: 10 | L127: 41-47 | M127: 24
A128: ULAUNCH435WS-46 | B128: 9 | C128: 51 | D128: 50 | E128: 0.6 | F128: 127 | G128: golf | H128: 122*15*10 | I128: 122 | J128: 15 | K128: 10 | L128: 45-51 | M128: 9
A129: ULAUNCH533WR-46 | B129: 9 | C129: 59 | D129: 50 | E129: 0.6 | F129: 128 | G129: golf | H129: 122*15*10 | I129: 122 | J129: 15 | K129: 10 | L129: 53-59 | M129: 221
A130: ULAUNCH533WS-46 | B130: 9 | C130: 60 | D130: 50 | E130: 0.6 | F130: 129 | G130: golf | H130: 122*15*10 | I130: 122 | J130: 15 | K130: 10 | L130: 54-60 | M130: 8
A131: ULAUNCH533WX-46 | B131: 9 | C131: 61 | D131: 50 | E131: 0.6 | F131: 130 | G131: golf | H131: 122*15*10 | I131: 122 | J131: 15 | K131: 10 | L131: 55-61 | M131: 30
A132: ULAUNCH535WR-46 | B132: 9 | C132: 60 | D132: 50 | E132: 0.6 | F132: 131 | G132: golf | H132: 122*15*10 | I132: 122 | J132: 15 | K132: 10 | L132: 54-60 | M132: 90
A133: ULAUNCH535WS-46 | B133: 9 | C133: 62 | D133: 50 | E133: 0.6 | F133: 132 | G133: golf | H133: 122*15*10 | I133: 122 | J133: 15 | K133: 10 | L133: 56-62 | M133: 9
A134: ULAUNCH535WX-46 | B134: 9 | C134: 62 | D134: 50 | E134: 0.6 | F134: 133 | G134: golf | H134: 122*15*10 | I134: 122 | J134: 15 | K134: 10 | L134: 56-62 | M134: 13
A135: ULAUNCH5SEWR-46 | B135: 9 | C135: 59 | D135: 50 | E135: 0.6 | F135: 134 | G135: golf | H135: 122*15*10 | I135: 122 | J135: 15 | K135: 10 | L135: 53-59 | M135: 0
A136: ULAUNCH633WR-46 | B136: 9 | C136: 69 | D136: 50 | E136: 0.6 | F136: 135 | G136: golf | H136: 122*15*10 | I136: 122 | J136: 15 | K136: 10 | L136: 63-69 | M136: 544
A137: ULAUNCH633WS-46 | B137: 9 | C137: 67 | D137: 50 | E137: 0.6 | F137: 136 | G137: golf | H137: 122*15*10 | I137: 122 | J137: 15 | K137: 10 | L137: 61-67 | M137: 16
A138: ULAUNCH633WX-46 | B138: 9 | C138: 68 | D138: 50 | E138: 0.6 | F138: 137 | G138: golf | H138: 122*15*10 | I138: 122 | J138: 15 | K138: 10 | L138: 62-68 | M138: 1559
A139: ULAUNCH635WR-46 | B139: 9 | C139: 70 | D139: 50 | E139: 0.6 | F139: 138 | G139: golf | H139: 122*15*10 | I139: 122 | J139: 15 | K139: 10 | L139: 64-70 | M139: 602
A140: ULAUNCH635WS-46 | B140: 9 | C140: 70 | D140: 50 | E140: 0.6 | F140: 139 | G140: golf | H140: 122*15*10 | I140: 122 | J140: 15 | K140: 10 | L140: 64-70 | M140: 881
A141: ULAUNCH635WX-46 | B141: 9 | C141: 70 | D141: 50 | E141: 0.6 | F141: 140 | G141: golf | H141: 122*15*10 | I141: 122 | J141: 15 | K141: 10 | L141: 64-70 | M141: 440
A142: ULAUNCH733WR-46 | B142: 9 | C142: 77 | D142: 50 | E142: 0.6 | F142: 141 | G142: golf | H142: 122*15*10 | I142: 122 | J142: 15 | K142: 10 | L142: 71-77 | M142: 52
A143: ULAUNCH733WS-46 | B143: 9 | C143: 77 | D143: 50 | E143: 0.6 | F143: 142 | G143: golf | H143: 122*15*10 | I143: 122 | J143: 15 | K143: 10 | L143: 71-77 | M143: 51
A144: ULAUNCH733WX-46 | B144: 9 | C144: 78 | D144: 50 | E144: 0.6 | F144: 143 | G144: golf | H144: 122*15*10 | I144: 122 | J144: 15 | K144: 10 | L144: 72-78 | M144: 0
A145: ULAUNCH735WR-46 | B145: 9 | C145: 78 | D145: 50 | E145: 0.6 | F145: 144 | G145: golf | H145: 122*15*10 | I145: 122 | J145: 15 | K145: 10 | L145: 72-78 | M145: 414
A146: ULAUNCH735WS-46 | B146: 9 | C146: 79 | D146: 50 | E146: 0.6 | F146: 145 | G146: golf | H146: 122*15*10 | I146: 122 | J146: 15 | K146: 10 | L146: 73-79 | M146: 635
A147: ULAUNCH735WX-46 | B147: 9 | C147: 78 | D147: 50 | E147: 0.6 | F147: 146 | G147: golf | H147: 122*15*10 | I147: 122 | J147: 15 | K147: 10 | L147: 72-78 | M147: 565
A148: ULAUNCHHY33WA-41 | B148: 9 | C148: 79 | D148: 50 | E148: 0.6 | F148: 147 | G148: golf | H148: 122*15*10 | I148: 122 | J148: 15 | K148: 10 | L148: 73-79 | M148: 62
A149: ULAUNCHHY33WR-41 | B149: 9 | C149: 84 | D149: 50 | E149: 0.6 | F149: 148 | G149: golf | H149: 122*15*10 | I149: 122 | J149: 15 | K149: 10 | L149: 78-84 | M149: 7
A150: ULAUNCHHY33WS-41 | B150: 9 | C150: 86 | D150: 50 | E150: 0.6 | F150: 149 | G150: golf | H150: 122*15*10 | I150: 122 | J150: 15 | K150: 10 | L150: 80-86 | M150: 0
A151: ULAUNCHHY33WX-41 | B151: 9 | C151: 85 | D151: 50 | E151: 0.6 | F151: 150 | G151: golf | H151: 122*15*10 | I151: 122 | J151: 15 | K151: 10 | L151: 79-85 | M151: 33
A152: ULAUNCHHYIA-41 | B152: 9 | C152: 78 | D152: 50 | E152: 0.6 | F152: 151 | G152: golf | H152: 122*15*10 | I152: 122 | J152: 15 | K152: 10 | L152: 72-78 | M152: 16
A153: ULAUNCHHYIR-41 | B153: 9 | C153: 84 | D153: 50 | E153: 0.6 | F153: 152 | G153: golf | H153: 122*15*10 | I153: 122 | J153: 15 | K153: 10 | L153: 78-84 | M153: 43
A154: ULAUNCHHYIS-41 | B154: 9 | C154: 85 | D154: 50 | E154: 0.6 | F154: 153 | G154: golf | H154: 122*15*10 | I154: 122 | J154: 15 | K154: 10 | L154: 79-85 | M154: 98
A155: ULAUNCHHYIX-41 | B155: 9 | C155: 85 | D155: 50 | E155: 0.6 | F155: 154 | G155: golf | H155: 122*15*10 | I155: 122 | J155: 15 | K155: 10 | L155: 79-85 | M155: 340
A156: ULAUNCHIA-41 | B156: 9 | C156: 84 | D156: 50 | E156: 0.6 | F156: 155 | G156: golf | H156: 122*15*10 | I156: 122 | J156: 15 | K156: 10 | L156: 78-84 | M156: 0
A157: ULAUNCHIR-41 | B157: 9 | C157: 81 | D157: 50 | E157: 0.6 | F157: 156 | G157: golf | H157: 122*15*10 | I157: 122 | J157: 15 | K157: 10 | L157: 75-81 | M157: 0
A158: ULAUNCHIS-41 | B158: 9 | C158: 86 | D158: 50 | E158: 0.6 | F158: 157 | G158: golf | H158: 122*15*10 | I158: 122 | J158: 15 | K158: 10 | L158: 80-86 | M158: 369
A159: UMKIA2-40 | B159: 9 | C159: 66 | D159: 50 | E159: 0.6 | F159: 158 | G159: golf | H159: 122*15*10 | I159: 122 | J159: 15 | K159: 10 | L159: 60-66 | M159: 0
A160: UMKIR2-40 | B160: 9 | C160: 68 | D160: 50 | E160: 0.6 | F160: 159 | G160: golf | H160: 122*15*10 | I160: 122 | J160: 15 | K160: 10 | L160: 62-68 | M160: 5
A161: UMKIS2-40 | B161: 9 | C161: 72 | D161: 50 | E161: 0.6 | F161: 160 | G161: golf | H161: 122*15*10 | I161: 122 | J161: 15 | K161: 10 | L161: 66-72 | M161: 0
A162: UPCGIAL-43 | B162: 9 | C162: 76 | D162: 50 | E162: 0.6 | F162: 161 | G162: golf | H162: 122*15*10 | I162: 122 | J162: 15 | K162: 10 | L162: 70-76 | M162: 568
A163: UPCGIRS-43 | B163: 9 | C163: 79 | D163: 50 | E163: 0.6 | F163: 162 | G163: golf | H163: 122*15*10 | I163: 122 | J163: 15 | K163: 10 | L163: 73-79 | M163: 529
A164: UPCGWAL-48 | B164: 9 | C164: 71 | D164: 50 | E164: 0.64 | F164: 163 | G164: golf | H164: 130*15*10 | I164: 130 | J164: 15 | K164: 10 | L164: 65-71 | M164: 159
A165: UPCGWRS-48 | B165: 9 | C165: 77 | D165: 50 | E165: 0.64 | F165: 164 | G165: golf | H165: 130*15*10 | I165: 130 | J165: 15 | K165: 10 | L165: 71-77 | M165: 389
A166: UPGLAUNCH33WL-46 | B166: 9 | C166: 65 | D166: 50 | E166: 0.6 | F166: 165 | G166: golf | H166: 122*15*10 | I166: 122 | J166: 15 | K166: 10 | L166: 59-65 | M166: 39
A167: UPGLAUNCH33WR-46 | B167: 9 | C167: 67 | D167: 50 | E167: 0.6 | F167: 166 | G167: golf | H167: 122*15*10 | I167: 122 | J167: 15 | K167: 10 | L167: 61-67 | M167: 7
A168: UPGLAUNCH33WS-46 | B168: 9 | C168: 71 | D168: 50 | E168: 0.6 | F168: 167 | G168: golf | H168: 122*15*10 | I168: 122 | J168: 15 | K168: 10 | L168: 65-71 | M168: 0
A169: UPRLT33WR-46-BLACK | B169: 9 | C169: 65 | D169: 50 | E169: 0.6 | F169: 168 | G169: golf | H169: 122*15*10 | I169: 122 | J169: 15 | K169: 10 | L169: 59-65 | M169: 16
A170: UPRLT33WR-46-BURG | B170: 9 | C170: 65 | D170: 50 | E170: 0.6 | F170: 169 | G170: golf | H170: 122*15*10 | I170: 122 | J170: 15 | K170: 10 | L170: 59-65 | M170: 158
A171: UPRLT33WS-46-BLACK | B171: 9 | C171: 67 | D171: 50 | E171: 0.6 | F171: 170 | G171: golf | H171: 122*15*10 | I171: 122 | J171: 15 | K171: 10 | L171: 61-67 | M171: 0
A172: UPRLT33WS-46-BURG | B172: 9 | C172: 67 | D172: 50 | E172: 0.6 | F172: 171 | G172: golf | H172: 122*15*10 | I172: 122 | J172: 15 | K172: 10 | L172: 61-67 | M172: 33
A173: UPRLT33WX-46-BLACK | B173: 9 | C173: 67 | D173: 50 | E173: 0.6 | F173: 172 | G173: golf | H173: 122*15*10 | I173: 122 | J173: 15 | K173: 10 | L173: 63-67 | M173: 0
A174: UPRLT33WX-46-BURG | B174: 9 | C174: 67 | D174: 50 | E174: 0.6 | F174: 173 | G174: golf | H174: 122*15*10 | I174: 122 | J174: 15 | K174: 10 | L174: 63-67 | M174: 0
A175: UPRLT35WR-46-BLACK | B175: 9 | C175: 68 | D175: 50 | E175: 0.6 | F175: 174 | G175: golf | H175: 122*15*10 | I175: 122 | J175: 15 | K175: 10 | L175: 62-68 | M175: 32
A176: UPRLT35WR-46-BURG | B176: 9 | C176: 68 | D176: 50 | E176: 0.6 | F176: 175 | G176: golf | H176: 122*15*10 | I176: 122 | J176: 15 | K176: 10 | L176: 62-68 | M176: 53
A177: UPRLT35WS-46-BLACK | B177: 9 | C177: 68 | D177: 50 | E177: 0.6 | F177: 176 | G177: golf | H177: 122*15*10 | I177: 122 | J177: 15 | K177: 10 | L177: 62-68 | M177: 15
A178: UPRLT35WS-46-BURG | B178: 9 | C178: 68 | D178: 50 | E178: 0.6 | F178: 177 | G178: golf | H178: 122*15*10 | I178: 122 | J178: 15 | K178: 10 | L178: 62-68 | M178: 11
A179: UPRLT35WX-46-BLACK | B179: 9 | C179: 71 | D179: 50 | E179: 0.6 | F179: 178 | G179: golf | H179: 122*15*10 | I179: 122 | J179: 15 | K179: 10 | L179: 65-71 | M179: 67
A180: UPRLT35WX-46-BURG | B180: 9 | C180: 71 | D180: 50 | E180: 0.6 | F180: 179 | G180: golf | H180: 122*15*10 | I180: 122 | J180: 15 | K180: 10 | L180: 65-71 | M180: 20
A181: UPRLT433WA-46-BLACK | B181: 9 | C181: 61 | D181: 50 | E181: 0.6 | F181: 180 | G181: golf | H181: 122*15*10 | I181: 122 | J181: 15 | K181: 10 | L181: 55-61 | M181: 0
A182: UPRLT433WR-46-BLACK | B182: 9 | C182: 63 | D182: 50 | E182: 0.6 | F182: 181 | G182: golf | H182: 122*15*10 | I182: 122 | J182: 15 | K182: 10 | L182: 57-63 | M182: 0
A183: UPRLT433WS-46-BLACK | B183: 9 | C183: 65 | D183: 50 | E183: 0.6 | F183: 182 | G183: golf | H183: 122*15*10 | I183: 122 | J183: 15 | K183: 10 | L183: 59-65 | M183: 42
A184: UPRLTF33WR-44-BLACK | B184: 9 | C184: 73 | D184: 50 | E184: 0.6 | F184: 183 | G184: golf | H184: 122*15*10 | I184: 122 | J184: 15 | K184: 10 | L184: 67-73 | M184: 57
A185: UPRLTF33WS-44-BLACK | B185: 9 | C185: 75 | D185: 50 | E185: 0.6 | F185: 184 | G185: golf | H185: 122*15*10 | I185: 122 | J185: 15 | K185: 10 | L185: 69-75 | M185: 29
A186: UPRLTF33WX-44-BLACK | B186: 9 | C186: 77 | D186: 50 | E186: 0.6 | F186: 185 | G186: golf | H186: 122*15*10 | I186: 122 | J186: 15 | K186: 10 | L186: 71-77 | M186: 47
A187: UPRLTF35WR-44-BLACK | B187: 9 | C187: 73 | D187: 50 | E187: 0.6 | F187: 186 | G187: golf | H187: 122*15*10 | I187: 122 | J187: 15 | K187: 10 | L187: 67-73 | M187: 0
A188: UPRLTF35WS-44-BLACK | B188: 9 | C188: 75 | D188: 50 | E188: 0.6 | F188: 187 | G188: golf | H188: 122*15*10 | I188: 122 | J188: 15 | K188: 10 | L188: 69-75 | M188: 0
A189: UPRLTF35WX-44-BLACK | B189: 9 | C189: 79 | D189: 50 | E189: 0.6 | F189: 188 | G189: golf | H189: 122*15*10 | I189: 122 | J189: 15 | K189: 10 | L189: 73-79 | M189: 0
A190: UPRLTIR-41 | B190: 9 | C190: 80 | D190: 50 | E190: 0.6 | F190: 189 | G190: golf | H190: 122*15*10 | I190: 122 | J190: 15 | K190: 10 | L190: 74-80 | M190: 0
A191: UPRLTIS-41 | B191: 9 | C191: 80 | D191: 50 | E191: 0.6 | F191: 190 | G191: golf | H191: 122*15*10 | I191: 122 | J191: 15 | K191: 10 | L191: 74-80 | M191: 0
A192: UQPWC-48 | B192: 9 | C192: 77 | D192: 50 | E192: 0.64 | F192: 191 | G192: golf | H192: 130*15*10 | I192: 130 | J192: 15 | K192: 10 | L192: 71-77 | M192: 27
A193: UWFS440WR-45 | B193: 9 | C193: 71 | D193: 50 | E193: 0.6 | F193: 192 | G193: golf | H193: 122*15*10 | I193: 122 | J193: 15 | K193: 10 | L193: 65-71 | M193: 6
A194: UWFS480WR-47 | B194: 9 | C194: 69 | D194: 50 | E194: 0.6 | F194: 193 | G194: golf | H194: 122*15*10 | I194: 122 | J194: 15 | K194: 10 | L194: 63-69 | M194: 4
A195: UWSHG815WR-47 | B195: 9 | C195: 69 | D195: 50 | E195: 0.6 | F195: 194 | G195: golf | H195: 122*15*10 | I195: 122 | J195: 15 | K195: 10 | L195: 63-69 | M195: 34
A196: UWSHG816WR-45 | B196: 9 | C196: 71 | D196: 50 | E196: 0.6 | F196: 195 | G196: golf | H196: 122*15*10 | I196: 122 | J196: 15 | K196: 10 | L196: 65-71 | M196: 58
A197: UWST35DWA-46 | B197: 9 | C197: 69 | D197: 50 | E197: 0.6 | F197: 196 | G197: golf | H197: 122*15*10 | I197: 122 | J197: 15 | K197: 10 | L197: 63-69 | M197: 0
A198: UWST35DWR-46 | B198: 9 | C198: 71 | D198: 50 | E198: 0.6 | F198: 197 | G198: golf | H198: 122*15*10 | I198: 122 | J198: 15 | K198: 10 | L198: 65-71 | M198: 627
A199: UWST35DWS-46 | B199: 9 | C199: 74 | D199: 50 | E199: 0.6 | F199: 198 | G199: golf | H199: 122*15*10 | I199: 122 | J199: 15 | K199: 10 | L199: 68-74 | M199: 0
A200: UWST35DWX-46 | B200: 9 | C200: 77 | D200: 50 | E200: 0.6 | F200: 199 | G200: golf | H200: 122*15*10 | I200: 122 | J200: 15 | K200: 10 | L200: 71-77 | M200: 0
... 1292 more rows
